Workbook

Sheet EventConfig
A1: ID | B1: EventLinksId | C1: EventTriggerType | D1: EventTag | E1: EventType | F1: Score | G1: EventQuality | I1: PrizeIDs | J1: PrizeNums | K1: RelatedEvents | L1: RefreshProbability | M1: RefreshCount | N1: placeID | O1: XiantuID | Q1: EventConditionId | R1: EventValue | S1: EventCount | T1: EventName | U1: Description
A2: int | B2: int[] | C2: int | D2: int | E2: int | F2: int | G2: int | I2: int[] | J2: int[] | K2: int[] | L2: int | M2: int | N2: int | O2: int | Q2: int | R2: int[] | S2: int | T2: int | U2: int
Y3: 1 | Z3: 2 | AA3: 3 | AB3: 4 | AC3: 5 | AD3: 6 | AE3: 7 | AF3: 8 | AG3: 9 | AH3: 10 | AI3: 11 | AJ3: 12 | AK3: 13 | AL3: 14 | AM3: 15 | AN3: 16 | AO3: 17 | AP3: 18 | AQ3: 19 | AR3: 20
A4: ID | B4: 事件包含的ID | C4: 事件类型： 1.通用事件 2.挂机事件 4.主线任务 5.仙山探险 6.支线事件 99.无标记 | D4: tag 1主线2支线 3通用 4地图通用 5道友6任务 7资源 | E4: 1.正常触发 2.直接结算 | F4: 增加进度值 | G4: 事件品质 | I4: 事件结局奖励 | J4: 事件结局奖励数量 | K4: 关联的事件Id | L4: 刷新的概率 （100=100%） | M4: 最大刷新数量 | N4: 属于哪张地图 | O4: 仙途日志ID | P4: 触发条件 | Q4: 触发条件类型 只能配处于什么状态和数值，不能配变化的数值 | R4: 触发效果值 | S4: 触发判定数量or次数 | T4: 任务标题 | U4: 任务详情界面的总描述 | V4: 标题 | W4: 整体描述 | X4: 总步数 | Y4: 步骤1 | Z4: 步骤2 | AA4: 步骤3 | AB4: 步骤4 | AC4: 步骤5 | AD4: 步骤6 | AE4: 步骤7 | AF4: 步骤8 | AG4: 步骤9 | AH4: 步骤10 | AI4: 步骤11 | AJ4: 步骤12 | AK4: 步骤13 | AL4: 步骤14 | AM4: 步骤15 | AN4: 步骤16 | AO4: 步骤17 | AP4: 步骤18 | AQ4: 步骤19 | AR4: 步骤20
A5: 1 | B5: =_xlfn.TEXTJOIN(";",1,Y5:AN5) -> 1001;1002;1003;1004;1005 | C5: 1 | D5: 3 | E5: 1 | F5: 0 | G5: 1 | I5: 1001 | J5: 10 | N5: 8 | O5: 4 | P5: =IF(Q5="","",VLOOKUP(Q5,条件类型查询!A:B,2,FALSE)) -> 境界判断 | Q5: 3 | R5: 5 | T5: 174 | U5: 1936 | V5: 受伤的狼 | W5: 你发现一只奄奄一息的狼，决定上前一探究竟。 | Y5: 1001 | Z5: 1002 | AA5: 1003 | AB5: 1004 | AC5: 1005
A6: 2 | B6: =_xlfn.TEXTJOIN(";",1,Y6:AN6) -> 1010;1011;1012;1013;1014;1015;1016 | C6: 1 | D6: 3 | E6: 1 | F6: 0 | G6: 1 | I6: 1001 | J6: 10 | N6: 9 | O6: 4 | P6: =IF(Q6="","",VLOOKUP(Q6,条件类型查询!A:B,2,FALSE)) ->  | T6: 175 | U6: 1937 | V6: 鹬蚌相争 | W6: 附近的小树林闹的不可开交，你决定去看看怎么回事。 | Y6: 1010 | Z6: 1011 | AA6: 1012 | AB6: 1013 | AC6: 1014 | AD6: 1015 | AE6: 1016
A7: 3 | B7: 1020;1021;1022;1023;1024;1025;1026 | C7: 99 | D7: 2 | E7: 1 | F7: 10 | G7: 1 | I7: 1001 | J7: 10 | N7: 10 | O7: 4 | P7: =IF(Q7="","",VLOOKUP(Q7,条件类型查询!A:B,2,FALSE)) -> 拥有特定道具 | Q7: 1 | R7: 1004 | S7: 1 | T7: 176 | U7: 1938 | V7: 鹬蚌相争2 | W7: 附近的小树林闹的不可开交，你决定去看看怎么回事。 | Y7: 1020 | Z7: 1021 | AA7: 1022 | AB7: 1023 | AC7: 1024 | AD7: 1025 | AE7: 1026
P8: =IF(Q8="","",VLOOKUP(Q8,条件类型查询!A:B,2,FALSE)) -> 
A9: 4 | B9: 1030 | C9: 1 | D9: 1 | E9: 2 | F9: 0 | G9: 1 | I9: 1001 | J9: 10 | N9: 5 | O9: 3 | P9: =IF(Q9="","",VLOOKUP(Q9,条件类型查询!A:B,2,FALSE)) -> 触发概率 | Q9: 7 | R9: 500 | T9: 217 | U9: 1939 | V9: 溅血背包 | W9: 不远处有一个小红点，走近一看你发现是一个带血的背包。 | Y9: 1030
A10: 5 | B10: 1040 | C10: 1 | D10: 1 | E10: 2 | F10: 0 | G10: 1 | I10: 1001 | J10: 10 | N10: 5 | O10: 3 | P10: =IF(Q10="","",VLOOKUP(Q10,条件类型查询!A:B,2,FALSE)) ->  | T10: 218 | U10: 1940 | V10: 废弃矿山 | W10: 底下一座矿山甚是磅礴雄伟，走，去看一看。 | Y10: 1040
A11: 6 | B11: 1050 | C11: 1 | D11: 1 | E11: 2 | F11: 0 | G11: 1 | I11: 1001 | J11: 10 | N11: 6 | O11: 3 | P11: =IF(Q11="","",VLOOKUP(Q11,条件类型查询!A:B,2,FALSE)) ->  | T11: 219 | U11: 1941 | V11: 吵架声 | W11: 你被一男一女的吵架声吸引。 | Y11: 1050
A12: 7 | B12: 1060 | C12: 1 | D12: 1 | E12: 2 | F12: 0 | G12: 1 | I12: 1001 | J12: 10 | N12: 7 | O12: 3 | P12: =IF(Q12="","",VLOOKUP(Q12,条件类型查询!A:B,2,FALSE)) ->  | T12: 220 | U12: 1942 | V12: 一座道观 | W12: 远处一座道观仙气缭绕，似有仙人在此。 | Y12: 1060
P13: =IF(Q13="","",VLOOKUP(Q13,条件类型查询!A:B,2,FALSE)) -> 
A14: 11 | B14: 1101;1102 | C14: 2 | E14: 1 | F14: 0 | G14: 1 | I14: 1001 | J14: 10 | P14: =IF(Q14="","",VLOOKUP(Q14,条件类型查询!A:B,2,FALSE)) ->  | V14: 遇到怪物1-修为 | X14: =COUNTIF(EventLinkConfig!O:O,EventConfig!A14) -> 2 | Y14: =IF($X14>=Y$3,$A14*100+Y$3,"") -> 1101 | Z14: =IF($X14>=Z$3,$A14*100+Z$3,"") -> 1102
A15: 12 | B15: 1201;1202;1203 | C15: 2 | E15: 1 | F15: 0 | G15: 1 | I15: 1001 | J15: 10 | P15: =IF(Q15="","",VLOOKUP(Q15,条件类型查询!A:B,2,FALSE)) ->  | V15: 对话-功法灵气 | X15: =COUNTIF(EventLinkConfig!O:O,EventConfig!A15) -> 3 | Y15: =IF($X15>=Y$3,$A15*100+Y$3,"") -> 1201 | Z15: 1202 | AA15: 1203
A16: 13 | B16: 1301;1302;1303;1304 | C16: 2 | E16: 1 | F16: 0 | G16: 1 | I16: 1001 | J16: 10 | P16: =IF(Q16="","",VLOOKUP(Q16,条件类型查询!A:B,2,FALSE)) ->  | V16: 对话-法宝灵韵 | X16: =COUNTIF(EventLinkConfig!O:O,EventConfig!A16) -> 4 | Y16: =IF($X16>=Y$3,$A16*100+Y$3,"") -> 1301 | Z16: 1302 | AA16: 1303 | AB16: 1304
A17: 14 | B17: 1401;1402 | C17: 2 | E17: 1 | F17: 0 | G17: 1 | I17: 1001 | J17: 10 | P17: =IF(Q17="","",VLOOKUP(Q17,条件类型查询!A:B,2,FALSE)) ->  | V17: 遇到怪物2-修为 | X17: =COUNTIF(EventLinkConfig!O:O,EventConfig!A17) -> 2 | Y17: =IF($X17>=Y$3,$A17*100+Y$3,"") -> 1401 | Z17: 1402
A18: 15 | B18: 1501;1502 | C18: 2 | E18: 1 | F18: 0 | G18: 1 | I18: 1001 | J18: 10 | P18: =IF(Q18="","",VLOOKUP(Q18,条件类型查询!A:B,2,FALSE)) ->  | V18: 遇到怪物3-修为 | X18: =COUNTIF(EventLinkConfig!O:O,EventConfig!A18) -> 2 | Y18: =IF($X18>=Y$3,$A18*100+Y$3,"") -> 1501 | Z18: 1502
P19: =IF(Q19="","",VLOOKUP(Q19,条件类型查询!A:B,2,FALSE)) -> 
P20: =IF(Q20="","",VLOOKUP(Q20,条件类型查询!A:B,2,FALSE)) -> 
A21: 10001 | B21: 1000101;1000102;1000103;1000104 | C21: 4 | D21: 1 | E21: 1 | F21: 10 | G21: 1 | I21: 1001 | J21: 10 | N21: 1 | O21: 1 | P21: =IF(Q21="","",VLOOKUP(Q21,条件类型查询!A:B,2,FALSE)) ->  | T21: 1906 | U21: 1914 | V21: 鲲鹏何在 | W21: 神识未灭 | X21: =COUNTIF(EventLinkConfig!O:O,EventConfig!A21) -> 4 | Y21: =IF($X21>=Y$3,$A21*100+Y$3,"") -> 1000101 | Z21: =IF($X21>=Z$3,$A21*100+Z$3,"") -> 1000102 | AA21: 1000103 | AB21: 1000104
A22: 10002 | B22: 1000201;1000202;1000203 | C22: 4 | D22: 1 | E22: 1 | F22: 10 | G22: 1 | I22: 1001 | J22: 10 | N22: 1 | O22: 1 | P22: =IF(Q22="","",VLOOKUP(Q22,条件类型查询!A:B,2,FALSE)) ->  | T22: 1907 | U22: 1915 | V22: 北海迷径1 | W22: 御剑而行 | X22: =COUNTIF(EventLinkConfig!O:O,EventConfig!A22) -> 3 | Y22: =IF($X22>=Y$3,$A22*100+Y$3,"") -> 1000201 | Z22: 1000202 | AA22: 1000203
A23: 10003 | B23: 1000301;1000302;1000303;1000304;1000305;1000306;1000307;1000308;1000309 | C23: 4 | D23: 1 | E23: 1 | F23: 10 | G23: 1 | I23: 1001 | J23: 10 | N23: 1 | O23: 1 | P23: =IF(Q23="","",VLOOKUP(Q23,条件类型查询!A:B,2,FALSE)) ->  | T23: 1908 | U23: 1916 | V23: 北海迷径2 | W23: 雀笑大鹏 | X23: =COUNTIF(EventLinkConfig!O:O,EventConfig!A23) -> 9 | Y23: 1000301 | Z23: 1000302 | AA23: 1000303 | AB23: 1000304 | AC23: 1000305 | AD23: 1000306 | AE23: 1000307 | AF23: 1000308 | AG23: 1000309
A24: 10004 | B24: 1000401;1000402;1000403;1000404 | C24: 4 | D24: 1 | E24: 1 | F24: 10 | G24: 1 | I24: 1001 | J24: 10 | N24: 1 | O24: 1 | P24: =IF(Q24="","",VLOOKUP(Q24,条件类型查询!A:B,2,FALSE)) ->  | T24: 1909 | U24: 1917 | V24: 古径阵法 | W24: 击败结界兽 | X24: =COUNTIF(EventLinkConfig!O:O,EventConfig!A24) -> 4 | Y24: 1000401 | Z24: 1000402 | AA24: 1000403 | AB24: 1000404
A25: 10005 | B25: 1000501;1000502;1000503;1000504;1000505;1000506;1000507;1000508;1000509;1000510;1000511;1000512;1000513;1000514 | C25: 4 | D25: 1 | E25: 1 | F25: 10 | G25: 1 | I25: 1001 | J25: 10 | N25: 1 | O25: 1 | P25: =IF(Q25="","",VLOOKUP(Q25,条件类型查询!A:B,2,FALSE)) ->  | T25: 2135 | U25: 2137 | V25: 浮空之岛1 | W25: 初见疯道人 | X25: =COUNTIF(EventLinkConfig!O:O,EventConfig!A25) -> 14 | Y25: 1000501 | Z25: 1000502 | AA25: 1000503 | AB25: 1000504 | AC25: 1000505 | AD25: 1000506 | AE25: 1000507 | AF25: 1000508 | AG25: 1000509 | AH25: 1000510 | AI25: 1000511 | AJ25: 1000512 | AK25: 1000513 | AL25: 1000514
A26: 10006 | B26: 1000601;1000602;1000603;1000604;1000605;1000606 | C26: 4 | D26: 1 | E26: 1 | F26: 10 | G26: 1 | I26: 1001 | J26: 10 | N26: 1 | O26: 1 | P26: =IF(Q26="","",VLOOKUP(Q26,条件类型查询!A:B,2,FALSE)) ->  | T26: 2136 | U26: 2138 | V26: 浮空之岛2 | W26: 筑基中期 | X26: =COUNTIF(EventLinkConfig!O:O,EventConfig!A26) -> 6 | Y26: 1000601 | Z26: 1000602 | AA26: 1000603 | AB26: 1000604 | AC26: 1000605 | AD26: 1000606
A27: 10007 | B27: 1000701;1000702;1000703;1000704;1000705 | C27: 4 | D27: 1 | E27: 1 | F27: 10 | G27: 1 | I27: 1001 | J27: 10 | N27: 1 | O27: 1 | P27: =IF(Q27="","",VLOOKUP(Q27,条件类型查询!A:B,2,FALSE)) ->  | T27: 2801 | U27: 2822 | V27: 风中洞府1 | W27: 击败痴道人 | X27: =COUNTIF(EventLinkConfig!O:O,EventConfig!A27) -> 5 | Y27: =IF($X27>=Y$3,$A27*100+Y$3,"") -> 1000701 | Z27: 1000702 | AA27: 1000703 | AB27: 1000704 | AC27: 1000705
A28: 10008 | B28: 1000801;1000802;1000803;1000804;1000805;1000806;1000807;1000808;1000809;1000810;1000811;1000812;1000813;1000814 | C28: 4 | D28: 1 | E28: 1 | F28: 10 | G28: 1 | I28: 1001 | J28: 10 | N28: 1 | O28: 1 | P28: =IF(Q28="","",VLOOKUP(Q28,条件类型查询!A:B,2,FALSE)) ->  | T28: 2802 | U28: 2823 | V28: 风中洞府2 | W28: 疯痴相聚 | X28: =COUNTIF(EventLinkConfig!O:O,EventConfig!A28) -> 14 | Y28: 1000801 | Z28: 1000802 | AA28: 1000803 | AB28: 1000804 | AC28: 1000805 | AD28: 1000806 | AE28: 1000807 | AF28: 1000808 | AG28: 1000809 | AH28: 1000810 | AI28: 1000811 | AJ28: 1000812 | AK28: 1000813 | AL28: 1000814
A29: 10009 | B29: 1000901;1000902;1000903 | C29: 4 | D29: 1 | E29: 1 | F29: 10 | G29: 1 | I29: 1001 | J29: 10 | N29: 1 | O29: 1 | P29: =IF(Q29="","",VLOOKUP(Q29,条件类型查询!A:B,2,FALSE)) ->  | T29: 2803 | U29: 2824 | V29: 风灵之力 | W29: 筑基后期 | X29: =COUNTIF(EventLinkConfig!O:O,EventConfig!A29) -> 3 | Y29: 1000901 | Z29: 1000902 | AA29: 1000903
A30: 10010 | B30: 1001001 | C30: 4 | D30: 1 | E30: 1 | F30: 10 | G30: 1 | I30: 1001 | J30: 10 | K30: 30003 | N30: 1 | O30: 1 | P30: =IF(Q30="","",VLOOKUP(Q30,条件类型查询!A:B,2,FALSE)) ->  | T30: 2804 | U30: 2825 | V30: 北海深处1 | W30: 妖兽横行 | X30: =COUNTIF(EventLinkConfig!O:O,EventConfig!A30) -> 1 | Y30: 1001001
A31: 10011 | B31: 1001101 | C31: 4 | D31: 1 | E31: 1 | F31: 10 | G31: 1 | I31: 1001 | J31: 10 | N31: 1 | O31: 1 | P31: =IF(Q31="","",VLOOKUP(Q31,条件类型查询!A:B,2,FALSE)) ->  | T31: 2805 | U31: 2826 | V31: 北海深处2 | W31: 遇见鲲鹏 | X31: =COUNTIF(EventLinkConfig!O:O,EventConfig!A31) -> 1 | Y31: 1001101
A32: 10012 | B32: 1001201;1001202;1001203;1001204;1001205;1001206;1001207;1001208;1001209;1001210;1001211;1001212 | C32: 4 | D32: 1 | E32: 1 | F32: 10 | G32: 1 | I32: 1001 | J32: 10 | N32: 2 | O32: 1 | P32: =IF(Q32="","",VLOOKUP(Q32,条件类型查询!A:B,2,FALSE)) ->  | T32: 2806 | U32: 2827 | V32: 尧之都 | W32: 尧让天下 | X32: =COUNTIF(EventLinkConfig!O:O,EventConfig!A32) -> 12 | Y32: =IF($X32>=Y$3,$A32*100+Y$3,"") -> 1001201 | Z32: 1001202 | AA32: 1001203 | AB32: 1001204 | AC32: 1001205 | AD32: 1001206 | AE32: 1001207 | AF32: 1001208 | AG32: 1001209 | AH32: 1001210 | AI32: 1001211 | AJ32: 1001212
A33: 10013 | B33: 1001301;1001302;1001303;1001304;1001305;1001306;1001307;1001308;1001309;1001310;1001311;1001312;1001313;1001314;1001315;1001316 | C33: 4 | D33: 1 | E33: 1 | F33: 10 | G33: 1 | I33: 1001 | J33: 10 | N33: 2 | O33: 1 | P33: =IF(Q33="","",VLOOKUP(Q33,条件类型查询!A:B,2,FALSE)) ->  | T33: 2807 | U33: 2828 | V33: 山林清音 | W33: 访贤许由 | X33: =COUNTIF(EventLinkConfig!O:O,EventConfig!A33) -> 16 | Y33: 1001301 | Z33: 1001302 | AA33: 1001303 | AB33: 1001304 | AC33: 1001305 | AD33: 1001306 | AE33: 1001307 | AF33: 1001308 | AG33: 1001309 | AH33: 1001310 | AI33: 1001311 | AJ33: 1001312 | AK33: 1001313 | AL33: 1001314 | AM33: 1001315 | AN33: 1001316
A34: 10014 | B34: 1001401;1001402;1001403;1001404;1001405;1001406;1001407;1001408 | C34: 4 | D34: 1 | E34: 1 | F34: 10 | G34: 1 | I34: 1001 | J34: 10 | K34: 30004 | N34: 2 | O34: 1 | P34: =IF(Q34="","",VLOOKUP(Q34,条件类型查询!A:B,2,FALSE)) ->  | T34: 2808 | U34: 2829 | V34: 山中劳作 | W34: 割草喝茶 | X34: =COUNTIF(EventLinkConfig!O:O,EventConfig!A34) -> 8 | Y34: 1001401 | Z34: 1001402 | AA34: 1001403 | AB34: 1001404 | AC34: 1001405 | AD34: 1001406 | AE34: 1001407 | AF34: 1001408
A35: 10015 | B35: 1001501;1001502;1001503;1001504;1001505;1001506;1001507;1001508 | C35: 4 | D35: 1 | E35: 1 | F35: 10 | G35: 1 | I35: 1001 | J35: 10 | K35: 30005 | N35: 2 | O35: 1 | P35: =IF(Q35="","",VLOOKUP(Q35,条件类型查询!A:B,2,FALSE)) ->  | T35: 2809 | U35: 2830 | V35: 风起夜战 | W35: 再来一杯 | X35: =COUNTIF(EventLinkConfig!O:O,EventConfig!A35) -> 8 | Y35: 1001501 | Z35: 1001502 | AA35: 1001503 | AB35: 1001504 | AC35: 1001505 | AD35: 1001506 | AE35: 1001507 | AF35: 1001508
A36: 10016 | B36: 1001601;1001602;1001603;1001604;1001605;1001606;1001607;1001608;1001609;1001610;1001611;1001612;1001613 | C36: 4 | D36: 1 | E36: 1 | F36: 10 | G36: 1 | I36: 1001 | J36: 10 | K36: 30006 | N36: 2 | O36: 1 | P36: =IF(Q36="","",VLOOKUP(Q36,条件类型查询!A:B,2,FALSE)) ->  | T36: 2810 | U36: 2831 | V36: 吃茶三问 | W36: 战胜妖王 | X36: =COUNTIF(EventLinkConfig!O:O,EventConfig!A36) -> 13 | Y36: 1001601 | Z36: 1001602 | AA36: 1001603 | AB36: 1001604 | AC36: 1001605 | AD36: 1001606 | AE36: 1001607 | AF36: 1001608 | AG36: 1001609 | AH36: 1001610 | AI36: 1001611 | AJ36: 1001612 | AK36: 1001613
A37: 10017 | B37: 1001701;1001702;1001703;1001704;1001705;1001706;1001707;1001708;1001709;1001710 | C37: 4 | D37: 1 | E37: 1 | F37: 10 | G37: 1 | I37: 1001 | J37: 10 | N37: 2 | O37: 1 | P37: =IF(Q37="","",VLOOKUP(Q37,条件类型查询!A:B,2,FALSE)) ->  | T37: 2811 | U37: 2832 | V37: 尧让天下 | W37: 复命尧帝 | X37: =COUNTIF(EventLinkConfig!O:O,EventConfig!A37) -> 10 | Y37: =IF($X37>=Y$3,$A37*100+Y$3,"") -> 1001701 | Z37: =IF($X37>=Z$3,$A37*100+Z$3,"") -> 1001702 | AA37: 1001703 | AB37: 1001704 | AC37: 1001705 | AD37: 1001706 | AE37: 1001707 | AF37: 1001708 | AG37: 1001709 | AH37: 1001710
A38: 10018 | B38: 1001801;1001802;1001803;1001804;1001805;1001806;1001807;1001808;1001809;1001810;1001811;1001812;1001813;1001814;1001815;1001816 | C38: 4 | D38: 1 | E38: 1 | F38: 10 | G38: 1 | I38: 1001 | J38: 10 | N38: 2 | O38: 1 | P38: =IF(Q38="","",VLOOKUP(Q38,条件类型查询!A:B,2,FALSE)) ->  | T38: 2812 | U38: 2833 | V38: 无用之树 | W38: 树下闲话 | X38: =COUNTIF(EventLinkConfig!O:O,EventConfig!A38) -> 20 | Y38: =IF($X38>=Y$3,$A38*100+Y$3,"") -> 1001801 | Z38: 1001802 | AA38: 1001803 | AB38: 1001804 | AC38: 1001805 | AD38: 1001806 | AE38: 1001807 | AF38: 1001808 | AG38: 1001809 | AH38: 1001810 | AI38: 1001811 | AJ38: 1001812 | AK38: 1001813 | AL38: 1001814 | AM38: 1001815 | AN38: =IF($X38>=AN$3,$A38*100+AN$3,"") -> 1001816 | AO38: =IF($X38>=AO$3,$A38*100+AO$3,"") -> 1001817 | AP38: =IF($X38>=AP$3,$A38*100+AP$3,"") -> 1001818 | AQ38: =IF($X38>=AQ$3,$A38*100+AQ$3,"") -> 1001819 | AR38: =IF($X38>=AR$3,$A38*100+AR$3,"") -> 1001820
A39: 10019 | B39: 1001901;1001902 | C39: 4 | D39: 1 | E39: 1 | F39: 10 | G39: 1 | I39: 1001 | J39: 10 | N39: 2 | O39: 1 | P39: =IF(Q39="","",VLOOKUP(Q39,条件类型查询!A:B,2,FALSE)) ->  | T39: 2813 | U39: 2834 | V39: 樗木之灵 | W39: 切磋切磋 | X39: =COUNTIF(EventLinkConfig!O:O,EventConfig!A39) -> 2 | Y39: =IF($X39>=Y$3,$A39*100+Y$3,"") -> 1001901 | Z39: 1001902
A40: 10020 | B40: 1002001;1002002;1002003;1002004 | C40: 4 | D40: 1 | E40: 1 | F40: 10 | G40: 1 | I40: 1001 | J40: 10 | N40: 2 | O40: 1 | P40: =IF(Q40="","",VLOOKUP(Q40,条件类型查询!A:B,2,FALSE)) ->  | T40: 2814 | U40: 2835 | V40: 游尧都 | W40: 金丹前期 | X40: =COUNTIF(EventLinkConfig!O:O,EventConfig!A40) -> 4 | Y40: 1002001 | Z40: 1002002 | AA40: 1002003 | AB40: 1002004
A41: 10021 | B41: 1002101;1002102;1002103;1002104;1002105;1002106;1002107;1002108;1002109;1002110;1002111;1002112 | C41: 4 | D41: 1 | E41: 1 | F41: 10 | G41: 1 | I41: 1001 | J41: 10 | N41: 2 | O41: 1 | P41: =IF(Q41="","",VLOOKUP(Q41,条件类型查询!A:B,2,FALSE)) ->  | T41: 2815 | U41: 2836 | V41: 再见尧帝 | W41: 仙山传说 | X41: =COUNTIF(EventLinkConfig!O:O,EventConfig!A41) -> 12 | Y41: 1002101 | Z41: 1002102 | AA41: 1002103 | AB41: 1002104 | AC41: 1002105 | AD41: 1002106 | AE41: 1002107 | AF41: 1002108 | AG41: 1002109 | AH41: 1002110 | AI41: 1002111 | AJ41: 1002112 | AK41: =IF($X41>=AK$3,$A41*100+AK$3,"") -> 
A42: 10022 | B42: 1002201;1002202;1002203 | C42: 4 | D42: 1 | E42: 1 | F42: 10 | G42: 1 | I42: 1001 | J42: 10 | K42: 30007 | N42: 3 | O42: 1 | P42: =IF(Q42="","",VLOOKUP(Q42,条件类型查询!A:B,2,FALSE)) ->  | T42: 2816 | U42: 2837 | V42: 云海漫行 | W42: 入山幻阵 | X42: =COUNTIF(EventLinkConfig!O:O,EventConfig!A42) -> 3 | Y42: 1002201 | Z42: 1002202 | AA42: 1002203
A43: 10023 | B43: 1002301;1002302;1002303;1002304;1002305;1002306;1002307;1002308;1002309;1002310;1002311;1002312 | C43: 4 | D43: 1 | E43: 1 | F43: 10 | G43: 1 | I43: 1001 | J43: 10 | N43: 3 | O43: 1 | P43: =IF(Q43="","",VLOOKUP(Q43,条件类型查询!A:B,2,FALSE)) ->  | T43: 2817 | U43: 2838 | V43: 初见惠子 | W43: 葫芦种子 | X43: =COUNTIF(EventLinkConfig!O:O,EventConfig!A43) -> 12 | Y43: =IF($X43>=Y$3,$A43*100+Y$3,"") -> 1002301 | Z43: 1002302 | AA43: 1002303 | AB43: 1002304 | AC43: 1002305 | AD43: 1002306 | AE43: 1002307 | AF43: 1002308 | AG43: 1002309 | AH43: 1002310 | AI43: 1002311 | AJ43: 1002312
A44: 10024 | B44: 1002401;1002402;1002403;1002404;1002405;1002406;1002407 | C44: 4 | D44: 1 | E44: 1 | F44: 10 | G44: 1 | I44: 1001 | J44: 10 | K44: 30008 | N44: 3 | O44: 1 | P44: =IF(Q44="","",VLOOKUP(Q44,条件类型查询!A:B,2,FALSE)) ->  | T44: 2818 | U44: 2839 | V44: 葫芦肥料 | W44: 天肥地肥 | X44: =COUNTIF(EventLinkConfig!O:O,EventConfig!A44) -> 7 | Y44: 1002401 | Z44: 1002402 | AA44: 1002403 | AB44: 1002404 | AC44: 1002405 | AD44: 1002406 | AE44: 1002407
A45: 10025 | B45: 1002501;1002502;1002503;1002504;1002505;1002506;1002507;1002508;1002509 | C45: 4 | D45: 1 | E45: 1 | F45: 10 | G45: 1 | I45: 1001 | J45: 10 | N45: 3 | O45: 1 | P45: =IF(Q45="","",VLOOKUP(Q45,条件类型查询!A:B,2,FALSE)) ->  | T45: 2819 | U45: 2840 | V45: 藐姑射山 | W45: 登山 | X45: =COUNTIF(EventLinkConfig!O:O,EventConfig!A45) -> 9 | Y45: 1002501 | Z45: 1002502 | AA45: 1002503 | AB45: 1002504 | AC45: 1002505 | AD45: 1002506 | AE45: 1002507 | AF45: 1002508 | AG45: 1002509
A46: 10026 | C46: 4 | D46: 1 | E46: 1 | F46: 10 | G46: 1 | I46: 1001 | J46: 10 | N46: 3 | O46: 1 | P46: =IF(Q46="","",VLOOKUP(Q46,条件类型查询!A:B,2,FALSE)) ->  | T46: 2820 | U46: 2841 | V46: 炼器师 | W46: 重铸忘火剑 | X46: =COUNTIF(EventLinkConfig!O:O,EventConfig!A46) -> 0
A47: 10027 | C47: 4 | D47: 1 | E47: 1 | F47: 10 | G47: 1 | I47: 1001 | J47: 10 | N47: 3 | O47: 1 | P47: =IF(Q47="","",VLOOKUP(Q47,条件类型查询!A:B,2,FALSE)) ->  | T47: 2821 | U47: 2842 | V47: 忘火剑 | W47: 护法 | X47: =COUNTIF(EventLinkConfig!O:O,EventConfig!A47) -> 0
A49: 1001 | B49: 1001;1002;1003;1004;1005 | C49: 99 | D49: 4 | E49: 1 | F49: 10 | G49: 1 | I49: 1001 | J49: 10 | T49: 1943 | U49: 1944 | V49: 受伤的鸟 | W49: 你发现一只奄奄一息的鸟，决定上前一探究竟。 | Y49: 1001 | Z49: 1002 | AA49: 1003 | AB49: 1004 | AC49: 1005
A50: 1011 | B50: 101101 | C50: 1 | D50: 7 | E50: 1 | F50: 0 | G50: 3 | I50: 1401 | J50: 1 | T50: 3017 | U50: 3018 | V50: 药田 | W50: 神识探索至一处山洞之中，似乎别有洞天 | X50: =COUNTIF(EventLinkConfig!O:O,EventConfig!A50) -> 1 | Y50: =IF($X50>=Y$3,$A50*100+Y$3,"") -> 101101
B60: =_xlfn.TEXTJOIN(";",1,Y60:AN60) -> 
A61: 20001 | B61: 1001;1002;1003;1004;1005 | C61: 5 | E61: 1 | F61: 0 | G61: 1 | I61: 1001 | J61: 10 | T61: 174 | U61: 1936 | V61: 受伤的狼 | W61: 你发现一只奄奄一息的狼，决定上前一探究竟。 | Y61: 1001 | Z61: 1002 | AA61: 1003 | AB61: 1004 | AC61: 1005
A62: 20002 | B62: 1010;1011;1012;1013;1014;1015;1016 | C62: 5 | E62: 1 | F62: 0 | G62: 1 | I62: 1001 | J62: 10 | P62: =IF(Q62="","",VLOOKUP(Q62,条件类型查询!A:B,2,FALSE)) ->  | T62: 175 | U62: 1937 | V62: 鹬蚌相争 | W62: 附近的小树林闹的不可开交，你决定去看看怎么回事。 | Y62: 1010 | Z62: 1011 | AA62: 1012 | AB62: 1013 | AC62: 1014 | AD62: 1015 | AE62: 1016
A63: 20003 | B63: 1001;1002;1003;1004;1005 | C63: 5 | E63: 1 | F63: 0 | G63: 1 | I63: 1001 | J63: 10 | T63: 1943 | U63: 1944 | V63: 受伤的鸟 | W63: 你发现一只奄奄一息的鸟，决定上前一探究竟。 | Y63: 1001 | Z63: 1002 | AA63: 1003 | AB63: 1004 | AC63: 1005
A65: 9001 | B65: 1001;1002;1003;1004;1005 | C65: 6 | D65: 3 | E65: 1 | F65: 0 | G65: 1 | I65: 1001 | J65: 10 | T65: 174 | U65: 1936 | V65: 受伤的狼 | W65: 你发现一只奄奄一息的狼，决定上前一探究竟。 | Y65: 1001 | Z65: 1002 | AA65: 1003 | AB65: 1004 | AC65: 1005
A66: 9002 | B66: 1010;1011;1012;1013;1014;1015;1016 | C66: 6 | D66: 3 | E66: 1 | F66: 0 | G66: 1 | I66: 1001 | J66: 10 | P66: =IF(Q66="","",VLOOKUP(Q66,条件类型查询!A:B,2,FALSE)) ->  | T66: 175 | U66: 1937 | V66: 鹬蚌相争 | W66: 附近的小树林闹的不可开交，你决定去看看怎么回事。 | Y66: 1010 | Z66: 1011 | AA66: 1012 | AB66: 1013 | AC66: 1014 | AD66: 1015 | AE66: 1016
A67: 9003 | B67: 9003;9004;9005;9006;9007;9008 | C67: 6 | D67: 5 | E67: 1 | F67: 0 | G67: 1 | I67: 1001 | J67: 10 | T67: 2035 | U67: 2036 | V67: 幽谷剑鸣 | W67: 你在闭关修炼时，感受到一股凌厉的剑意波动。深入探查，发现一名白衣剑修“清霜”盘坐于谷中，周围剑气环绕，正与一柄散发不祥气息的灵剑对峙。她似在参悟剑诀，却灵气不足，剑灵桀骜。 | Y67: 9003 | Z67: 9004 | AA67: 9005 | AB67: 9006 | AC67: 9007 | AD67: 9008
A68: 9025 | C68: 6 | D68: 3 | E68: 1 | F68: 0 | G68: 1 | I68: 1001 | J68: 10 | N68: 1 | O68: 2 | T68: 2067 | U68: 2068 | V68: 惠子.没用的大葫芦 | W68: 惠子种的葫芦没用，他非常生气
A69: 9014 | B69: 9014 | C69: 6 | D69: 3 | E69: 1 | F69: 0 | G69: 1 | I69: 1001 | J69: 10 | K69: 9031 | N69: 2 | O69: 2 | T69: 2069 | U69: 2070 | V69: 发现魔修 | W69: 发现一群魔修，正在夺人钱财 | Y69: 9014
A70: 9031 | B70: 9031 | C70: 6 | D70: 3 | E70: 1 | F70: 0 | G70: 1 | I70: 1001 | J70: 10 | L70: 30 | M70: 2 | N70: 3 | O70: 2 | T70: 2071 | U70: 2072 | V70: 魔修 | W70: 打败魔休 | Y70: 9031
A72: 30001 | B72: =_xlfn.TEXTJOIN(";",1,Y72:AN72) ->  | C72: 99 | D72: 6 | E72: 1 | F72: 0 | G72: 1 | L72: 50 | M72: 5 | X72: =COUNTIF(EventLinkConfig!O:O,EventConfig!A72) -> 0 | Y72: =IF($X72>=Y$3,$A72*100+Y$3,"") -> 
A73: 30002 | B73: =_xlfn.TEXTJOIN(";",1,Y73:AN73) ->  | C73: 99 | D73: 6 | E73: 1 | F73: 0 | G73: 1 | L73: 50 | M73: 1 | X73: =COUNTIF(EventLinkConfig!O:O,EventConfig!A73) -> 0
A74: 30003 | B74: =_xlfn.TEXTJOIN(";",1,Y74:AN74) -> 3000301 | C74: 99 | D74: 6 | E74: 1 | F74: 0 | G74: 1 | L74: 50 | M74: 1 | N74: 1 | X74: =COUNTIF(EventLinkConfig!O:O,EventConfig!A74) -> 1 | Y74: 3000301
A75: 30004 | B75: =_xlfn.TEXTJOIN(";",1,Y75:AN75) -> 3000401 | C75: 99 | D75: 6 | E75: 1 | F75: 0 | G75: 1 | L75: 50 | M75: 3 | N75: 2 | X75: =COUNTIF(EventLinkConfig!O:O,EventConfig!A75) -> 1 | Y75: 3000401
A76: 30005 | B76: =_xlfn.TEXTJOIN(";",1,Y76:AN76) -> 3000501 | C76: 99 | D76: 6 | E76: 1 | F76: 0 | G76: 1 | L76: 50 | M76: 1 | N76: 2 | X76: =COUNTIF(EventLinkConfig!O:O,EventConfig!A76) -> 1 | Y76: 3000501
A77: 30006 | B77: 3000601 | C77: 99 | D77: 6 | E77: 1 | F77: 0 | G77: 1 | L77: 50 | M77: 1 | N77: 2 | X77: =COUNTIF(EventLinkConfig!O:O,EventConfig!A77) -> 1 | Y77: 3000601
A78: 30007 | B78: 3000701 | C78: 99 | D78: 6 | E78: 1 | F78: 0 | G78: 1 | L78: 50 | M78: 1 | N78: 3 | X78: =COUNTIF(EventLinkConfig!O:O,EventConfig!A78) -> 1 | Y78: 3000701
A79: 30008 | B79: 3000801 | C79: 99 | D79: 6 | E79: 1 | F79: 0 | G79: 1 | L79: 15 | M79: 1 | N79: 3 | X79: =COUNTIF(EventLinkConfig!O:O,EventConfig!A79) -> 1 | Y79: 3000801
A81: 5001 | B81: 500101;500102;500103;500104;500105;500106;500107;500108;500109;500110;500111;500112;500113;500114;500115;500116 | C81: 6 | D81: 5 | E81: 1 | F81: 10 | G81: 3 | I81: 1401 | J81: 1 | N81: 1 | O81: 1 | Q81: 10 | R81: 10008 | T81: 3019 | U81: 3020 | V81: 风影为二 | W81: 风影为二详情占位 | X81: =COUNTIF(EventLinkConfig!O:O,EventConfig!A81) -> 19 | Y81: =IF($X81>=Y$3,$A81*100+Y$3,"") -> 500101 | Z81: 500102 | AA81: 500103 | AB81: 500104 | AC81: 500105 | AD81: 500106 | AE81: 500107 | AF81: 500108 | AG81: 500109 | AH81: 500110 | AI81: 500111 | AJ81: 500112 | AK81: 500113 | AL81: 500114 | AM81: 500115 | AN81: 500116 | AO81: 500117 | AP81: 500118 | AQ81: 500119
A82: 5002
A83: 5003

Sheet EventLinkConfig
A1: ID | B1: conciseEventMessage | D1: EventConditionMessage | G1: PreShow | H1: PreShowPar | J1: NPCID | L1: LanID | N1: DialogueType | O1: EventID | Q1: ConditionId | U1: optionType | V1: optionPara1 | W1: optionPara2 | AC1: PrizeIDs | AD1: PrizeNums | AE1: ResultType | AF1: ResultOptions
A2: int | B2: int | D2: int | G2: int | H2: int | J2: int | L2: int[] | N2: int | O2: int | Q2: int[] | U2: int | V2: int[] | W2: int[] | AC2: int[] | AD2: int[] | AE2: int | AF2: int[]
A4: ID | B4: 任务列表中的简洁描述 | C4: 任务列表中的简洁描述 | D4: 无任务目标时的补充文本 | E4: 无任务目标时的补充文本 | G4: 前置表现 | H4: 前置表现参数 | J4: 对话NPCID | K4: NPC | L4: 对话 | M4: 对话1 | N4: 对话框类型 | O4: 属于哪个事件 | P4: 步骤 | Q4: 条件判断类型 | R4: 任务目标1 | S4: 任务目标2 | T4: 条件判断内容 | U4: 步骤类型 1=提供选项 2=进入战斗 3=获得奖励 4=扣除道具 5=自动退出 | V4: 事件常量1 1=步骤IDs 2=战斗ID | W4: 事件常量2 1=事件文本 | X4: 选择1 | Y4: 选择1 | Z4: 选择2 | AA4: 选择2 | AC4: 事件结局奖励 | AD4: 事件结局奖励数量 | AE4: 事件结束类型 1：跳转步骤 2：根据战斗结果跳转 3.触发新事件 | AF4: 事件结局后提供的选项 1.EventLinkId 2.胜利id;失败id 3.EventConfigId
A5: 100 | L5: 216 | M5: 你被怪物击败，神识也随之消散了。 | Q5: =_xlfn.TEXTJOIN(";",1,R5:S5) ->  | T5: =IF(R5="","","-"&VLOOKUP(R5,EventConditionConfig!A:C,3,FALSE)&IF(S5="","",CHAR(10)&"-"&VLOOKUP(S5,EventConditionConfig!A:C,3,FALSE))) -> 
A6: 101 | L6: 3011 | M6: 你败下阵来，感到头晕目眩，试图努力回忆起刚才发生的事情。(回到主界面重新触发剧情） | Q6: =_xlfn.TEXTJOIN(";",1,R6:S6) ->  | T6: =IF(R6="","","-"&VLOOKUP(R6,EventConditionConfig!A:C,3,FALSE)&IF(S6="","",CHAR(10)&"-"&VLOOKUP(S6,EventConditionConfig!A:C,3,FALSE))) -> 
A7: 102 | L7: 3012 | M7: 战斗胜利，你的任务进度增加了。
T8: =IF(R8="","","-"&VLOOKUP(R8,EventConditionConfig!A:C,3,FALSE)&IF(S8="","",CHAR(10)&"-"&VLOOKUP(S8,EventConditionConfig!A:C,3,FALSE))) -> 
A9: 1001 | B9: 177 | J9: 2 | L9: 177 | M9: 你遇到一只奄奄一息的野狼，从周围四散的血迹来看，想必它刚才经历了一场恶战。 | T9: =IF(R9="","","-"&VLOOKUP(R9,EventConditionConfig!A:C,3,FALSE)&IF(S9="","",CHAR(10)&"-"&VLOOKUP(S9,EventConditionConfig!A:C,3,FALSE))) ->  | U9: 1 | V9: 1002;1003 | W9: 198;199 | Y9: 趁它虚弱赶紧除掉它！ | AA9: 你不忍见它受苦，选择帮它减轻痛苦。
A10: 1002 | B10: 178 | L10: 178 | M10: 野狼用它最后一口气，朝你扑了过来！ | T10: =IF(R10="","","-"&VLOOKUP(R10,EventConditionConfig!A:C,3,FALSE)&IF(S10="","",CHAR(10)&"-"&VLOOKUP(S10,EventConditionConfig!A:C,3,FALSE))) ->  | U10: 2 | V10: 100001 | AE10: 2 | AF10: 1004;100
A11: 1003 | B11: 179 | L11: 179 | M11: 你抽出匕首准备了结它的生命，却发现怀中还躺着一只刚出生的狼崽。 | T11: =IF(R11="","","-"&VLOOKUP(R11,EventConditionConfig!A:C,3,FALSE)&IF(S11="","",CHAR(10)&"-"&VLOOKUP(S11,EventConditionConfig!A:C,3,FALSE))) ->  | U11: 1 | V11: 1005 | W11: 200
A12: 1004 | B12: 180 | L12: 180 | M12: 随着你的最后一击，野狼应声倒下，你罔顾它幽怨的眼神，从它怀中拿走了一些财物。 | T12: =IF(R12="","","-"&VLOOKUP(R12,EventConditionConfig!A:C,3,FALSE)&IF(S12="","",CHAR(10)&"-"&VLOOKUP(S12,EventConditionConfig!A:C,3,FALSE))) ->  | U12: 3 | AC12: 1002 | AD12: 100
A13: 1005 | B13: 181 | L13: 181 | M13: 母狼似乎懂你要做什么，眼神归于平静。你终结了她，决定收养这只小狼仔。 | T13: =IF(R13="","","-"&VLOOKUP(R13,EventConditionConfig!A:C,3,FALSE)&IF(S13="","",CHAR(10)&"-"&VLOOKUP(S13,EventConditionConfig!A:C,3,FALSE))) ->  | U13: 3 | AC13: 1001 | AD13: 50
T14: =IF(R14="","","-"&VLOOKUP(R14,EventConditionConfig!A:C,3,FALSE)&IF(S14="","",CHAR(10)&"-"&VLOOKUP(S14,EventConditionConfig!A:C,3,FALSE))) -> 
A15: 1010 | B15: 182 | L15: 182 | M15: 从不远处传来刀剑声，听起来双方已经精疲力尽了。 | T15: =IF(R15="","","-"&VLOOKUP(R15,EventConditionConfig!A:C,3,FALSE)&IF(S15="","",CHAR(10)&"-"&VLOOKUP(S15,EventConditionConfig!A:C,3,FALSE))) ->  | U15: 1 | V15: 1011;1012 | W15: 201;202 | Y15: 去看看 | AA15: (需拥有法宝凝神珠）听起来都是鸡毛蒜皮的小摩擦，你选择祭出凝神珠化解他们的怨气。
A16: 1011 | B16: 183 | L16: 183 | M16: 你走进一看，原来是一伙山贼分赃不均内讧了起来。你看着旁边被砍的七零八落的轿子和这群山贼，选择怎么做呢： | T16: =IF(R16="","","-"&VLOOKUP(R16,EventConditionConfig!A:C,3,FALSE)&IF(S16="","",CHAR(10)&"-"&VLOOKUP(S16,EventConditionConfig!A:C,3,FALSE))) ->  | U16: 1 | V16: 1014;1015 | W16: 203;204 | Y16: 你顿时杀心四起，决定杀了贼寇，救出轿中之人 | AA16: 盗贼们个个双眼杀的通红，你决定来个渔翁得利。
A17: 1012 | B17: 184 | L17: 184;187 | M17: 法宝现身，效果立竿见影，刀剑声逐渐消失，这个世界安静了。 | T17: =IF(R17="","","-"&VLOOKUP(R17,EventConditionConfig!A:C,3,FALSE)&IF(S17="","",CHAR(10)&"-"&VLOOKUP(S17,EventConditionConfig!A:C,3,FALSE))) ->  | U17: 3 | AC17: 1001 | AD17: 10 | AH17: 1 | AI17: 1001;1
A18: 1014 | B18: 185 | L18: 185 | M18: 你怒斥贼寇的恶行，贼寇们被你激怒了，准备迎战！ | T18: =IF(R18="","","-"&VLOOKUP(R18,EventConditionConfig!A:C,3,FALSE)&IF(S18="","",CHAR(10)&"-"&VLOOKUP(S18,EventConditionConfig!A:C,3,FALSE))) ->  | U18: 2 | V18: 100002 | AE18: 2 | AF18: 1016;100 | AH18: 2 | AI18: 4;150
A19: 1015 | B19: 186 | L19: 186;189 | M19: 你趁人不备顺走了轿内主人的包裹，任留轿内人痛苦的挣扎。 | T19: =IF(R19="","","-"&VLOOKUP(R19,EventConditionConfig!A:C,3,FALSE)&IF(S19="","",CHAR(10)&"-"&VLOOKUP(S19,EventConditionConfig!A:C,3,FALSE))) ->  | U19: 3 | AC19: 1003 | AD19: 1000
A20: 1016 | B20: 188 | L20: 188 | M20: 杀退贼寇，你上演了一出英雄救美的桥段。姑娘为了答谢你的救命之恩，将藏在贴身处的珍贵首饰赠与你作为定情信物。 | T20: =IF(R20="","","-"&VLOOKUP(R20,EventConditionConfig!A:C,3,FALSE)&IF(S20="","",CHAR(10)&"-"&VLOOKUP(S20,EventConditionConfig!A:C,3,FALSE))) ->  | AC20: 1001 | AD20: 200
T21: =IF(R21="","","-"&VLOOKUP(R21,EventConditionConfig!A:C,3,FALSE)&IF(S21="","",CHAR(10)&"-"&VLOOKUP(S21,EventConditionConfig!A:C,3,FALSE))) -> 
A22: 1020 | B22: 190 | L22: 190 | M22: 从不远处传来刀剑声，听起来双方已经精疲力尽了。 | T22: =IF(R22="","","-"&VLOOKUP(R22,EventConditionConfig!A:C,3,FALSE)&IF(S22="","",CHAR(10)&"-"&VLOOKUP(S22,EventConditionConfig!A:C,3,FALSE))) ->  | U22: 1 | V22: 1021;1022 | W22: 201;202 | Y22: 去看看 | AA22: 使用法宝息事宁人
A23: 1021 | B23: 191 | L23: 191 | M23: 你走进一看，原来是一伙山贼抢了一名坐在官轿内的女子，因分赃不均内讧了起来。山贼二话不说就朝你冲了过来！ | T23: =IF(R23="","","-"&VLOOKUP(R23,EventConditionConfig!A:C,3,FALSE)&IF(S23="","",CHAR(10)&"-"&VLOOKUP(S23,EventConditionConfig!A:C,3,FALSE))) ->  | U23: 2 | V23: 100003 | AC23: 1002 | AD23: 100 | AE23: 2 | AF23: 1026;100
A24: 1022 | B24: 192 | L24: 192 | M24: 法宝现身，效果立竿见影，刀剑声逐渐消失，这个世界安静了。 | T24: =IF(R24="","","-"&VLOOKUP(R24,EventConditionConfig!A:C,3,FALSE)&IF(S24="","",CHAR(10)&"-"&VLOOKUP(S24,EventConditionConfig!A:C,3,FALSE))) ->  | U24: 4 | AC24: 1002 | AD24: 10 | AH24: 1 | AI24: 1001;1
A25: 1024 | B25: 193 | L25: 193;196 | M25: 你大声怒斥贼寇的恶行，贼首发现你了，准备迎战！ | T25: =IF(R25="","","-"&VLOOKUP(R25,EventConditionConfig!A:C,3,FALSE)&IF(S25="","",CHAR(10)&"-"&VLOOKUP(S25,EventConditionConfig!A:C,3,FALSE))) ->  | U25: 2 | V25: 100004 | AC25: 1004 | AD25: 100 | AE25: 2 | AF25: 1016;100 | AH25: 2 | AI25: 4;150
A26: 1025 | B26: 194 | L26: 194;197 | M26: 你趁人不备顺走了轿内主人的包裹，任留轿内人痛苦的挣扎。 | T26: =IF(R26="","","-"&VLOOKUP(R26,EventConditionConfig!A:C,3,FALSE)&IF(S26="","",CHAR(10)&"-"&VLOOKUP(S26,EventConditionConfig!A:C,3,FALSE))) ->  | U26: 3 | AC26: 1002 | AD26: 1000
A27: 1026 | B27: 207 | L27: 207 | M27: 你将山贼们打的落花流水，成功吸引了山贼头子的注意。 | T27: =IF(R27="","","-"&VLOOKUP(R27,EventConditionConfig!A:C,3,FALSE)&IF(S27="","",CHAR(10)&"-"&VLOOKUP(S27,EventConditionConfig!A:C,3,FALSE))) ->  | U27: 1 | V27: 1024;1025 | W27: 205;206 | Y27: 选择正面迎战山贼头领（困难） | AA27: 你决定避开山贼头领的视线，来个渔翁得利。
T28: =IF(R28="","","-"&VLOOKUP(R28,EventConditionConfig!A:C,3,FALSE)&IF(S28="","",CHAR(10)&"-"&VLOOKUP(S28,EventConditionConfig!A:C,3,FALSE))) -> 
A29: 1030 | B29: 221 | L29: 221 | M29: 发现一个血迹斑斑的背包，好像刚刚发生了战斗，我翻翻背包... | T29: =IF(R29="","","-"&VLOOKUP(R29,EventConditionConfig!A:C,3,FALSE)&IF(S29="","",CHAR(10)&"-"&VLOOKUP(S29,EventConditionConfig!A:C,3,FALSE))) ->  | U29: 3 | AC29: 1002 | AD29: 10
T30: =IF(R30="","","-"&VLOOKUP(R30,EventConditionConfig!A:C,3,FALSE)&IF(S30="","",CHAR(10)&"-"&VLOOKUP(S30,EventConditionConfig!A:C,3,FALSE))) -> 
A31: 1040 | B31: 222 | L31: 222 | M31: 啥也没有....除了钱 | T31: =IF(R31="","","-"&VLOOKUP(R31,EventConditionConfig!A:C,3,FALSE)&IF(S31="","",CHAR(10)&"-"&VLOOKUP(S31,EventConditionConfig!A:C,3,FALSE))) ->  | U31: 3 | AC31: 1002 | AD31: 10
T32: =IF(R32="","","-"&VLOOKUP(R32,EventConditionConfig!A:C,3,FALSE)&IF(S32="","",CHAR(10)&"-"&VLOOKUP(S32,EventConditionConfig!A:C,3,FALSE))) -> 
A33: 1050 | B33: 223 | L33: 223 | M33: 两夫妻在吵架，似乎为了一件大事.. | T33: =IF(R33="","","-"&VLOOKUP(R33,EventConditionConfig!A:C,3,FALSE)&IF(S33="","",CHAR(10)&"-"&VLOOKUP(S33,EventConditionConfig!A:C,3,FALSE))) ->  | U33: 3 | AC33: 1002;1001 | AD33: 10;20
T34: =IF(R34="","","-"&VLOOKUP(R34,EventConditionConfig!A:C,3,FALSE)&IF(S34="","",CHAR(10)&"-"&VLOOKUP(S34,EventConditionConfig!A:C,3,FALSE))) -> 
A35: 1060 | B35: 224 | L35: 224 | M35: 没有任何发现，但感觉空气很好....下次有空再来看看 | T35: =IF(R35="","","-"&VLOOKUP(R35,EventConditionConfig!A:C,3,FALSE)&IF(S35="","",CHAR(10)&"-"&VLOOKUP(S35,EventConditionConfig!A:C,3,FALSE))) -> 
T36: =IF(R36="","","-"&VLOOKUP(R36,EventConditionConfig!A:C,3,FALSE)&IF(S36="","",CHAR(10)&"-"&VLOOKUP(S36,EventConditionConfig!A:C,3,FALSE))) -> 
T37: =IF(R37="","","-"&VLOOKUP(R37,EventConditionConfig!A:C,3,FALSE)&IF(S37="","",CHAR(10)&"-"&VLOOKUP(S37,EventConditionConfig!A:C,3,FALSE))) -> 
T38: =IF(R38="","","-"&VLOOKUP(R38,EventConditionConfig!A:C,3,FALSE)&IF(S38="","",CHAR(10)&"-"&VLOOKUP(S38,EventConditionConfig!A:C,3,FALSE))) -> 
A39: =O39*100+P39 -> 1101 | L39: 208 | M39: 事件10001：一只[怪物1]袭击了你，准备迎战 | O39: 11 | P39: =IF(O39=O38,P38+1,1) -> 1 | T39: =IF(R39="","","-"&VLOOKUP(R39,EventConditionConfig!A:C,3,FALSE)&IF(S39="","",CHAR(10)&"-"&VLOOKUP(S39,EventConditionConfig!A:C,3,FALSE))) ->  | U39: 2 | V39: 100001 | AE39: 2 | AF39: 1102;100
A40: =O40*100+P40 -> 1102 | L40: 209 | M40: 你击败了怪物，并从它身上吸取了一些修为 | O40: 11 | P40: =IF(O40=O39,P39+1,1) -> 2 | T40: =IF(R40="","","-"&VLOOKUP(R40,EventConditionConfig!A:C,3,FALSE)&IF(S40="","",CHAR(10)&"-"&VLOOKUP(S40,EventConditionConfig!A:C,3,FALSE))) ->  | U40: 3 | AC40: 1003 | AD40: 3000
T41: =IF(R41="","","-"&VLOOKUP(R41,EventConditionConfig!A:C,3,FALSE)&IF(S41="","",CHAR(10)&"-"&VLOOKUP(S41,EventConditionConfig!A:C,3,FALSE))) -> 
A42: =O42*100+P42 -> 1201 | L42: 210 | M42: 你偶遇一处仙气四溢无人生活的洞穴 | O42: 12 | P42: =IF(O42=O41,P41+1,1) -> 1 | T42: =IF(R42="","","-"&VLOOKUP(R42,EventConditionConfig!A:C,3,FALSE)&IF(S42="","",CHAR(10)&"-"&VLOOKUP(S42,EventConditionConfig!A:C,3,FALSE))) ->  | AE42: 1 | AF42: =A43 -> 1202
A43: =O43*100+P43 -> 1202 | L43: 211 | M43: 不知哪位高人在洞穴内壁留下绝世秘籍 | O43: 12 | P43: =IF(O43=O42,P42+1,1) -> 2 | T43: =IF(R43="","","-"&VLOOKUP(R43,EventConditionConfig!A:C,3,FALSE)&IF(S43="","",CHAR(10)&"-"&VLOOKUP(S43,EventConditionConfig!A:C,3,FALSE))) ->  | AE43: 1 | AF43: =A44 -> 1203
A44: =O44*100+P44 -> 1203 | L44: 1903 | M44: 你仔细研读后，功法得到精进 | O44: 12 | P44: =IF(O44=O43,P43+1,1) -> 3 | T44: =IF(R44="","","-"&VLOOKUP(R44,EventConditionConfig!A:C,3,FALSE)&IF(S44="","",CHAR(10)&"-"&VLOOKUP(S44,EventConditionConfig!A:C,3,FALSE))) ->  | U44: 3 | AC44: 1005 | AD44: 500
T45: =IF(R45="","","-"&VLOOKUP(R45,EventConditionConfig!A:C,3,FALSE)&IF(S45="","",CHAR(10)&"-"&VLOOKUP(S45,EventConditionConfig!A:C,3,FALSE))) -> 
A46: =O46*100+P46 -> 1301 | L46: 212 | M46: 你在飞行途中不慎滑倒 | O46: 13 | P46: =IF(O46=O45,P45+1,1) -> 1 | T46: =IF(R46="","","-"&VLOOKUP(R46,EventConditionConfig!A:C,3,FALSE)&IF(S46="","",CHAR(10)&"-"&VLOOKUP(S46,EventConditionConfig!A:C,3,FALSE))) ->  | AE46: 1 | AF46: =A47 -> 1302
A47: =O47*100+P47 -> 1302 | L47: 213 | M47: 原来是脚下有一块圆润的微微发光的石头 | O47: 13 | P47: =IF(O47=O46,P46+1,1) -> 2 | T47: =IF(R47="","","-"&VLOOKUP(R47,EventConditionConfig!A:C,3,FALSE)&IF(S47="","",CHAR(10)&"-"&VLOOKUP(S47,EventConditionConfig!A:C,3,FALSE))) ->  | AE47: 1 | AF47: =A48 -> 1303
A48: 1303 | L48: 214 | M48: 你拾起来一看，原来它蕴含了丰富的法宝灵韵 | O48: 13 | P48: 3 | T48: =IF(R48="","","-"&VLOOKUP(R48,EventConditionConfig!A:C,3,FALSE)&IF(S48="","",CHAR(10)&"-"&VLOOKUP(S48,EventConditionConfig!A:C,3,FALSE))) ->  | AE48: 1 | AF48: =A49 -> 1304
A49: 1304 | L49: 215 | M49: 原本郁闷的心情，突然变的好了起来，哈哈~ | O49: 13 | P49: 4 | T49: =IF(R49="","","-"&VLOOKUP(R49,EventConditionConfig!A:C,3,FALSE)&IF(S49="","",CHAR(10)&"-"&VLOOKUP(S49,EventConditionConfig!A:C,3,FALSE))) ->  | U49: 3 | AC49: 1006 | AD49: 500
T50: =IF(R50="","","-"&VLOOKUP(R50,EventConditionConfig!A:C,3,FALSE)&IF(S50="","",CHAR(10)&"-"&VLOOKUP(S50,EventConditionConfig!A:C,3,FALSE))) -> 
A51: 1401 | L51: 1901 | M51: 事件10005：一只[怪物2]袭击了你，准备迎战 | O51: 14 | P51: =IF(O51=O50,P50+1,1) -> 1 | T51: =IF(R51="","","-"&VLOOKUP(R51,EventConditionConfig!A:C,3,FALSE)&IF(S51="","",CHAR(10)&"-"&VLOOKUP(S51,EventConditionConfig!A:C,3,FALSE))) ->  | U51: 2 | V51: 100002 | AE51: 2 | AF51: 1402;100
A52: 1402 | L52: 209 | M52: 你击败了怪物，并从它身上吸取了一些修为 | O52: 14 | P52: =IF(O52=O51,P51+1,1) -> 2 | T52: =IF(R52="","","-"&VLOOKUP(R52,EventConditionConfig!A:C,3,FALSE)&IF(S52="","",CHAR(10)&"-"&VLOOKUP(S52,EventConditionConfig!A:C,3,FALSE))) ->  | U52: 3 | AC52: 1003 | AD52: 3000
T53: =IF(R53="","","-"&VLOOKUP(R53,EventConditionConfig!A:C,3,FALSE)&IF(S53="","",CHAR(10)&"-"&VLOOKUP(S53,EventConditionConfig!A:C,3,FALSE))) -> 
A54: 1501 | L54: 1902 | M54: 事件10006：一只[怪物3]袭击了你，准备迎战 | O54: 15 | P54: =IF(O54=O53,P53+1,1) -> 1 | T54: =IF(R54="","","-"&VLOOKUP(R54,EventConditionConfig!A:C,3,FALSE)&IF(S54="","",CHAR(10)&"-"&VLOOKUP(S54,EventConditionConfig!A:C,3,FALSE))) ->  | U54: 2 | V54: 100003 | AE54: 2 | AF54: 1502;100
A55: 1502 | L55: 209 | M55: 你击败了怪物，并从它身上吸取了一些修为 | O55: 15 | P55: =IF(O55=O54,P54+1,1) -> 2 | T55: =IF(R55="","","-"&VLOOKUP(R55,EventConditionConfig!A:C,3,FALSE)&IF(S55="","",CHAR(10)&"-"&VLOOKUP(S55,EventConditionConfig!A:C,3,FALSE))) ->  | U55: 3 | AC55: 1003 | AD55: 3000
T56: =IF(R56="","","-"&VLOOKUP(R56,EventConditionConfig!A:C,3,FALSE)&IF(S56="","",CHAR(10)&"-"&VLOOKUP(S56,EventConditionConfig!A:C,3,FALSE))) -> 
A57: 9003 | B57: 2036 | L57: 2036 | M57: 你在闭关修炼时，感受到一股凌厉的剑意波动。深入探查，发现一名白衣剑修“清霜”盘坐于谷中，周围剑气环绕，正与一柄散发不祥气息的灵剑对峙。她似在参悟剑诀，却灵气不足，剑灵桀骜。 | T57: =IF(R57="","","-"&VLOOKUP(R57,EventConditionConfig!A:C,3,FALSE)&IF(S57="","",CHAR(10)&"-"&VLOOKUP(S57,EventConditionConfig!A:C,3,FALSE))) ->  | U57: 1 | V57: 9004;9006 | W57: 2041;2042
A58: 9004 | B58: 2037 | L58: 2037 | M58: 你上前以剑意对抗剑灵 | T58: =IF(R58="","","-"&VLOOKUP(R58,EventConditionConfig!A:C,3,FALSE)&IF(S58="","",CHAR(10)&"-"&VLOOKUP(S58,EventConditionConfig!A:C,3,FALSE))) ->  | U58: 2 | V58: 100001 | AE58: 2 | AF58: 9005;100
A59: 9005 | B59: 2038 | L59: 2038 | M59: 成功压制剑灵，清霜赠你“霜华剑符”并结下道友之谊 | T59: =IF(R59="","","-"&VLOOKUP(R59,EventConditionConfig!A:C,3,FALSE)&IF(S59="","",CHAR(10)&"-"&VLOOKUP(S59,EventConditionConfig!A:C,3,FALSE))) -> 
A60: 9006 | B60: 2039 | L60: 2039 | M60: 你察觉谷中灵气匮乏，清霜剑意凝滞。神识探查得知，附近秘境可采集“玄冰花” | T60: =IF(R60="","","-"&VLOOKUP(R60,EventConditionConfig!A:C,3,FALSE)&IF(S60="","",CHAR(10)&"-"&VLOOKUP(S60,EventConditionConfig!A:C,3,FALSE))) -> 
A61: 9007 | B61: 2040 | L61: 2040 | M61: 献上玄冰花，清霜炼化灵气突破瓶颈，赠你“玄霜剑意” | T61: =IF(R61="","","-"&VLOOKUP(R61,EventConditionConfig!A:C,3,FALSE)&IF(S61="","",CHAR(10)&"-"&VLOOKUP(S61,EventConditionConfig!A:C,3,FALSE))) ->  | U61: 4 | AE61: 1 | AF61: 9007
A62: 9008 | T62: =IF(R62="","","-"&VLOOKUP(R62,EventConditionConfig!A:C,3,FALSE)&IF(S62="","",CHAR(10)&"-"&VLOOKUP(S62,EventConditionConfig!A:C,3,FALSE))) ->  | U62: 3 | AC62: 1001 | AD62: 999
T63: =IF(R63="","","-"&VLOOKUP(R63,EventConditionConfig!A:C,3,FALSE)&IF(S63="","",CHAR(10)&"-"&VLOOKUP(S63,EventConditionConfig!A:C,3,FALSE))) -> 
T64: =IF(R64="","","-"&VLOOKUP(R64,EventConditionConfig!A:C,3,FALSE)&IF(S64="","",CHAR(10)&"-"&VLOOKUP(S64,EventConditionConfig!A:C,3,FALSE))) -> 
T65: =IF(R65="","","-"&VLOOKUP(R65,EventConditionConfig!A:C,3,FALSE)&IF(S65="","",CHAR(10)&"-"&VLOOKUP(S65,EventConditionConfig!A:C,3,FALSE))) -> 
A66: 9025 | B66: 2074 | D66: 2073 | E66: 和惠子交谈 | L66: 2074 | M66: 惠子种的葫芦没用，他非常生气，需要打败魔休 | T66: =IF(R66="","","-"&VLOOKUP(R66,EventConditionConfig!A:C,3,FALSE)&IF(S66="","",CHAR(10)&"-"&VLOOKUP(S66,EventConditionConfig!A:C,3,FALSE))) ->  | U66: 1 | V66: 9026 | W66: 2075
A67: 9026 | M67: 选择后接新的事件 | T67: =IF(R67="","","-"&VLOOKUP(R67,EventConditionConfig!A:C,3,FALSE)&IF(S67="","",CHAR(10)&"-"&VLOOKUP(S67,EventConditionConfig!A:C,3,FALSE))) ->  | Y67: 接受任务 | AE67: 3 | AF67: 9014
T68: =IF(R68="","","-"&VLOOKUP(R68,EventConditionConfig!A:C,3,FALSE)&IF(S68="","",CHAR(10)&"-"&VLOOKUP(S68,EventConditionConfig!A:C,3,FALSE))) -> 
T69: =IF(R69="","","-"&VLOOKUP(R69,EventConditionConfig!A:C,3,FALSE)&IF(S69="","",CHAR(10)&"-"&VLOOKUP(S69,EventConditionConfig!A:C,3,FALSE))) -> 
A70: 9014 | B70: 2070 | E70: 击杀魔休 | Q70: 3 | R70: 3 | T70: =IF(R70="","","-"&VLOOKUP(R70,EventConditionConfig!A:C,3,FALSE)&IF(S70="","",CHAR(10)&"-"&VLOOKUP(S70,EventConditionConfig!A:C,3,FALSE))) -> -击杀魔休
Q71: =_xlfn.TEXTJOIN(";",1,R71:S71) ->  | T71: =IF(R71="","","-"&VLOOKUP(R71,EventConditionConfig!A:C,3,FALSE)&IF(S71="","",CHAR(10)&"-"&VLOOKUP(S71,EventConditionConfig!A:C,3,FALSE))) -> 
T72: =IF(R72="","","-"&VLOOKUP(R72,EventConditionConfig!A:C,3,FALSE)&IF(S72="","",CHAR(10)&"-"&VLOOKUP(S72,EventConditionConfig!A:C,3,FALSE))) -> 
A73: 9031 | B73: 2076 | C73: 出现Boss魔修 | D73: 2077 | E73: 打败魔修 | T73: =IF(R73="","","-"&VLOOKUP(R73,EventConditionConfig!A:C,3,FALSE)&IF(S73="","",CHAR(10)&"-"&VLOOKUP(S73,EventConditionConfig!A:C,3,FALSE))) ->  | U73: 2 | V73: 100001
T74: =IF(R74="","","-"&VLOOKUP(R74,EventConditionConfig!A:C,3,FALSE)&IF(S74="","",CHAR(10)&"-"&VLOOKUP(S74,EventConditionConfig!A:C,3,FALSE))) -> 
A75: =O75*100+P75 -> 1000101 | B75: 2086 | C75: 使用风铃唤醒还未泯灭的神识 | L75: 2083 | M75: 北冥有鱼，其名为鲲…… | N75: 2 | O75: 10001 | P75: =IF(O75=O74,P74+1,1) -> 1 | T75: =IF(R75="","","-"&VLOOKUP(R75,EventConditionConfig!A:C,3,FALSE)&IF(S75="","",CHAR(10)&"-"&VLOOKUP(S75,EventConditionConfig!A:C,3,FALSE))) ->  | AE75: =IF(A75="","",IF(U75=1,"",IF(A76="",3,1))) -> 1 | AF75: =IF(AE75=1,A76,IF(AE75=3,LEFT(A75,5)+1,"")) -> 1000102
A76: =O76*100+P76 -> 1000102 | B76: 2086 | C76: 使用风铃唤醒还未泯灭的神识 | L76: 2084 | M76: 不过北海遥远，何时能寻得鲲鹏的踪迹。 | N76: 2 | O76: 10001 | P76: =IF(O76=O75,P75+1,1) -> 2 | T76: =IF(R76="","","-"&VLOOKUP(R76,EventConditionConfig!A:C,3,FALSE)&IF(S76="","",CHAR(10)&"-"&VLOOKUP(S76,EventConditionConfig!A:C,3,FALSE))) ->  | AE76: =IF(A76="","",IF(U76=1,"",IF(A77="",3,1))) -> 1 | AF76: =IF(AE76=1,A77,IF(AE76=3,LEFT(A76,5)+1,"")) -> 1000103
A77: =O77*100+P77 -> 1000103 | B77: 2086 | C77: 使用风铃唤醒还未泯灭的神识 | L77: 2085 | M77: 好在我的神识尚在，可探天地，再加上刚刚的风铃，或许能寻得前路线索。 | N77: 2 | O77: 10001 | P77: 3 | T77: =IF(R77="","","-"&VLOOKUP(R77,EventConditionConfig!A:C,3,FALSE)&IF(S77="","",CHAR(10)&"-"&VLOOKUP(S77,EventConditionConfig!A:C,3,FALSE))) ->  | AE77: 1 | AF77: 1000104
A78: =O78*100+P78 -> 1000104 | B78: 2086 | C78: 使用风铃唤醒还未泯灭的神识 | O78: 10001 | P78: 4 | Q78: 5 | R78: 5 | T78: =IF(R78="","","-"&VLOOKUP(R78,EventConditionConfig!A:C,3,FALSE)&IF(S78="","",CHAR(10)&"-"&VLOOKUP(S78,EventConditionConfig!A:C,3,FALSE))) -> -使用神识 | AE78: 3 | AF78: 10002
T79: =IF(R79="","","-"&VLOOKUP(R79,EventConditionConfig!A:C,3,FALSE)&IF(S79="","",CHAR(10)&"-"&VLOOKUP(S79,EventConditionConfig!A:C,3,FALSE))) -> 
A80: =O80*100+P80 -> 1000201 | B80: 2091 | C80: 前往妖兽盘踞的地方 | L80: 2092 | M80: 神识发现有一条古径，隐于云山之间，不过似乎有妖兽盘踞。 | N80: 3 | O80: 10002 | P80: 1 | T80: =IF(R80="","","-"&VLOOKUP(R80,EventConditionConfig!A:C,3,FALSE)&IF(S80="","",CHAR(10)&"-"&VLOOKUP(S80,EventConditionConfig!A:C,3,FALSE))) ->  | AE80: 1 | AF80: =IF(AE80=1,A81,IF(AE80=3,LEFT(A80,5)+1,"")) -> 1000202
A81: =O81*100+P81 -> 1000202 | B81: 2091 | C81: 前往妖兽盘踞的地方 | L81: 2093 | M81: 没其他办法了，过去看看吧。 | N81: 3 | O81: 10002 | P81: 2 | T81: =IF(R81="","","-"&VLOOKUP(R81,EventConditionConfig!A:C,3,FALSE)&IF(S81="","",CHAR(10)&"-"&VLOOKUP(S81,EventConditionConfig!A:C,3,FALSE))) ->  | AE81: 1 | AF81: 1000203
A82: =O82*100+P82 -> 1000203 | B82: 2091 | C82: 前往妖兽盘踞的地方 | D82: 2094 | E82: 继续飞行一段时间 | O82: 10002 | P82: 3 | T82: =IF(R82="","","-"&VLOOKUP(R82,EventConditionConfig!A:C,3,FALSE)&IF(S82="","",CHAR(10)&"-"&VLOOKUP(S82,EventConditionConfig!A:C,3,FALSE))) ->  | AE82: 3 | AF82: 10003
T83: =IF(R83="","","-"&VLOOKUP(R83,EventConditionConfig!A:C,3,FALSE)&IF(S83="","",CHAR(10)&"-"&VLOOKUP(S83,EventConditionConfig!A:C,3,FALSE))) -> 
A84: 1000301 | B84: 2095 | C84: 蜩鸟和小麻雀对你的到来很好奇 | K84: =IF(J84="","",VLOOKUP(J84,EventNPC!A:E,5,FALSE)) ->  | L84: 2096 | M84: 应该就是这里了，似乎有古老的阵法挡住了去路 | O84: 10003 | P84: 1 | T84: =IF(R84="","","-"&VLOOKUP(R84,EventConditionConfig!A:C,3,FALSE)&IF(S84="","",CHAR(10)&"-"&VLOOKUP(S84,EventConditionConfig!A:C,3,FALSE))) ->  | AE84: 1 | AF84: 1000302
A85: =O85*100+P85 -> 1000302 | B85: 2095 | C85: 蜩鸟和小麻雀对你的到来很好奇 | K85: =IF(J85="","",VLOOKUP(J85,EventNPC!A:E,5,FALSE)) ->  | L85: 2097 | M85: （结界门前，三只小鸟飞来，落在一旁古松上） | O85: 10003 | P85: 2 | T85: =IF(R85="","","-"&VLOOKUP(R85,EventConditionConfig!A:C,3,FALSE)&IF(S85="","",CHAR(10)&"-"&VLOOKUP(S85,EventConditionConfig!A:C,3,FALSE))) ->  | AE85: 1 | AF85: 1000303
A86: =O86*100+P86 -> 1000303 | B86: 2095 | C86: 蜩鸟和小麻雀对你的到来很好奇 | J86: 101 | K86: =IF(J86="","",VLOOKUP(J86,EventNPC!A:E,5,FALSE)) -> 蜩鸟 | L86: 2098 | M86: （拍翅）：“咦？又是妄图穿行北海之人？” | O86: 10003 | P86: =IF(O86=O85,P85+1,1) -> 3 | T86: =IF(R86="","","-"&VLOOKUP(R86,EventConditionConfig!A:C,3,FALSE)&IF(S86="","",CHAR(10)&"-"&VLOOKUP(S86,EventConditionConfig!A:C,3,FALSE))) ->  | U86: 1 | V86: =A87 -> 1000304 | W86: =_xlfn.TEXTJOIN(";",1,X86,Z86) -> 2099 | X86: 2099 | Y86: 我在寻找鲲鹏，你们知道它在哪里吗？
A87: =O87*100+P87 -> 1000304 | B87: 2095 | C87: 蜩鸟和小麻雀对你的到来很好奇 | J87: 102 | K87: =IF(J87="","",VLOOKUP(J87,EventNPC!A:E,5,FALSE)) -> 小麻雀 | L87: 2100 | M87: （扑棱翅膀）是想要从北海飞往南海的超级大鸟吧？ | O87: 10003 | P87: =IF(O87=O86,P86+1,1) -> 4 | T87: =IF(R87="","","-"&VLOOKUP(R87,EventConditionConfig!A:C,3,FALSE)&IF(S87="","",CHAR(10)&"-"&VLOOKUP(S87,EventConditionConfig!A:C,3,FALSE))) ->  | AE87: 1 | AF87: 1000305
A88: =O88*100+P88 -> 1000305 | B88: 2095 | C88: 蜩鸟和小麻雀对你的到来很好奇 | J88: 102 | K88: =IF(J88="","",VLOOKUP(J88,EventNPC!A:E,5,FALSE)) -> 小麻雀 | L88: 2101 | M88: 我就想不明白，她为何要飞如此之远，太奇怪啦！ | O88: 10003 | P88: =IF(O88=O87,P87+1,1) -> 5 | T88: =IF(R88="","","-"&VLOOKUP(R88,EventConditionConfig!A:C,3,FALSE)&IF(S88="","",CHAR(10)&"-"&VLOOKUP(S88,EventConditionConfig!A:C,3,FALSE))) ->  | U88: 1 | V88: =A89 -> 1000306 | W88: 2102 | X88: 2102 | Y88: 鲲鹏是在追求心中的目标吧。
A89: =O89*100+P89 -> 1000306 | B89: 2095 | C89: 蜩鸟和小麻雀对你的到来很好奇 | J89: 102 | K89: =IF(J89="","",VLOOKUP(J89,EventNPC!A:E,5,FALSE)) -> 小麻雀 | L89: 2103 | M89: （偏头想了想）目标？我天天在这里上蹿下跳，在附近树林飞来飞去，就已经很幸福啦。 | O89: 10003 | P89: =IF(O89=O88,P88+1,1) -> 6 | T89: =IF(R89="","","-"&VLOOKUP(R89,EventConditionConfig!A:C,3,FALSE)&IF(S89="","",CHAR(10)&"-"&VLOOKUP(S89,EventConditionConfig!A:C,3,FALSE))) ->  | AE89: 1 | AF89: 1000307
A90: =O90*100+P90 -> 1000307 | B90: 2095 | C90: 蜩鸟和小麻雀对你的到来很好奇 | J90: 102 | K90: =IF(J90="","",VLOOKUP(J90,EventNPC!A:E,5,FALSE)) -> 小麻雀 | L90: 2104 | M90: 就那大傻鸟，非要飞那么远，又笨又蠢...真没意思。 | O90: 10003 | P90: =IF(O90=O89,P89+1,1) -> 7 | T90: =IF(R90="","","-"&VLOOKUP(R90,EventConditionConfig!A:C,3,FALSE)&IF(S90="","",CHAR(10)&"-"&VLOOKUP(S90,EventConditionConfig!A:C,3,FALSE))) ->  | U90: 1 | V90: =A91 -> 1000308 | W90: 2105;2106 | X90: 2105 | Y90: 你说得也有一定道理… | Z90: 2106 | AA90: 你懂什么..这大鹏鸟可比你更有志向多了。
A91: =O91*100+P91 -> 1000308 | B91: 2095 | C91: 蜩鸟和小麻雀对你的到来很好奇 | J91: 101 | K91: =IF(J91="","",VLOOKUP(J91,EventNPC!A:E,5,FALSE)) -> 蜩鸟 | L91: 2107 | M91: （翻飞一圈）志向有什么用？到头来还不是风停了就落地。 | O91: 10003 | P91: =IF(O91=O90,P90+1,1) -> 8 | T91: =IF(R91="","","-"&VLOOKUP(R91,EventConditionConfig!A:C,3,FALSE)&IF(S91="","",CHAR(10)&"-"&VLOOKUP(S91,EventConditionConfig!A:C,3,FALSE))) ->  | U91: 1 | V91: =A92 -> 1000309 | W91: 2108 | X91: 2108 | Y91: ......
A92: =O92*100+P92 -> 1000309 | B92: 2095 | C92: 蜩鸟和小麻雀对你的到来很好奇 | K92: =IF(J92="","",VLOOKUP(J92,EventNPC!A:E,5,FALSE)) ->  | L92: 2109 | M92: （此时，结界微动，一缕风穿林而过，古径阵法竟有一丝松动） | O92: 10003 | P92: =IF(O92=O91,P91+1,1) -> 9 | T92: =IF(R92="","","-"&VLOOKUP(R92,EventConditionConfig!A:C,3,FALSE)&IF(S92="","",CHAR(10)&"-"&VLOOKUP(S92,EventConditionConfig!A:C,3,FALSE))) ->  | AE92: 3 | AF92: 10004
T93: =IF(R93="","","-"&VLOOKUP(R93,EventConditionConfig!A:C,3,FALSE)&IF(S93="","",CHAR(10)&"-"&VLOOKUP(S93,EventConditionConfig!A:C,3,FALSE))) -> 
A94: =O94*100+P94 -> 1000401 | B94: 2110 | C94: 原来它们就是镇守阵法的结界兽 | D94: 2115 | E94: 击败结界兽 | J94: 101 | K94: =IF(J94="","",VLOOKUP(J94,EventNPC!A:E,5,FALSE)) -> 蜩鸟 | L94: 2111 | M94: 这结界似乎有所反应… | O94: 10004 | P94: =IF(O94=O93,P93+1,1) -> 1 | T94: =IF(R94="","","-"&VLOOKUP(R94,EventConditionConfig!A:C,3,FALSE)&IF(S94="","",CHAR(10)&"-"&VLOOKUP(S94,EventConditionConfig!A:C,3,FALSE))) ->  | U94: 1 | V94: =A95 -> 1000402 | W94: =_xlfn.TEXTJOIN(";",1,X94,Z94) -> 2112 | X94: 2112 | Y94: 与你们聊天很有意思，不过今天我是非过去不可，没人能阻止我重返仙途！
A95: =O95*100+P95 -> 1000402 | B95: 2110 | C95: 原来它们就是镇守阵法的结界兽 | D95: 2115 | E95: 击败结界兽 | J95: 102 | K95: =IF(J95="","",VLOOKUP(J95,EventNPC!A:E,5,FALSE)) -> 小麻雀 | L95: 2113 | M95: "小鸟.."现身吧！ | O95: 10004 | P95: =IF(O95=O94,P94+1,1) -> 2 | T95: =IF(R95="","","-"&VLOOKUP(R95,EventConditionConfig!A:C,3,FALSE)&IF(S95="","",CHAR(10)&"-"&VLOOKUP(S95,EventConditionConfig!A:C,3,FALSE))) ->  | W95: =_xlfn.TEXTJOIN(";",1,X95,Z95) ->  | AE95: =IF(A95="","",IF(U95=1,"",IF(A96="",3,1))) -> 1 | AF95: =IF(AE95=1,A96,IF(AE95=3,LEFT(A95,5)+1,"")) -> 1000403
A96: =O96*100+P96 -> 1000403 | B96: 2110 | C96: 原来它们就是镇守阵法的结界兽 | D96: 2115 | E96: 击败结界兽 | J96: 101 | K96: =IF(J96="","",VLOOKUP(J96,EventNPC!A:E,5,FALSE)) -> 蜩鸟 | L96: 2114 | M96: （轻轻飞下来..）又来...来吧来吧.. | O96: 10004 | P96: =IF(O96=O95,P95+1,1) -> 3 | T96: =IF(R96="","","-"&VLOOKUP(R96,EventConditionConfig!A:C,3,FALSE)&IF(S96="","",CHAR(10)&"-"&VLOOKUP(S96,EventConditionConfig!A:C,3,FALSE))) ->  | U96: 2 | V96: 100001 | W96: =_xlfn.TEXTJOIN(";",1,X96,Z96) ->  | AE96: 2 | AF96: 1000404;101
A97: =O97*100+P97 -> 1000404 | B97: 2110 | C97: 原来它们就是镇守阵法的结界兽 | J97: 102 | K97: =IF(J97="","",VLOOKUP(J97,EventNPC!A:E,5,FALSE)) -> 小麻雀 | L97: 2115 | M97: 怎么想过去，就去吧.. | O97: 10004 | P97: =IF(O97=O96,P96+1,1) -> 4 | T97: =IF(R97="","","-"&VLOOKUP(R97,EventConditionConfig!A:C,3,FALSE)&IF(S97="","",CHAR(10)&"-"&VLOOKUP(S97,EventConditionConfig!A:C,3,FALSE))) ->  | W97: =_xlfn.TEXTJOIN(";",1,X97,Z97) ->  | AE97: =IF(A97="","",IF(U97=1,"",IF(A98="",3,1))) -> 3 | AF97: =IF(AE97=1,A98,IF(AE97=3,LEFT(A97,5)+1,"")) -> 10005
T98: =IF(R98="","","-"&VLOOKUP(R98,EventConditionConfig!A:C,3,FALSE)&IF(S98="","",CHAR(10)&"-"&VLOOKUP(S98,EventConditionConfig!A:C,3,FALSE))) -> 
A99: =O99*100+P99 -> 1000501 | B99: 2151 | C99: 初见疯道人 | K99: =IF(J99="","",VLOOKUP(J99,EventNPC!A:E,5,FALSE)) ->  | L99: 2116 | M99: 你穿过古径结界，来到一片被风托起的浮空灵岛群。 | O99: 10005 | P99: =IF(O99=O98,P98+1,1) -> 1 | T99: =IF(R99="","","-"&VLOOKUP(R99,EventConditionConfig!A:C,3,FALSE)&IF(S99="","",CHAR(10)&"-"&VLOOKUP(S99,EventConditionConfig!A:C,3,FALSE))) ->  | W99: =_xlfn.TEXTJOIN(";",1,X99,Z99) ->  | AE99: =IF(A99="","",IF(U99=1,"",IF(A100="",3,1))) -> 1 | AF99: =IF(AE99=1,A100,IF(AE99=3,LEFT(A99,5)+1,"")) -> 1000502
A100: =O100*100+P100 -> 1000502 | B100: 2151 | C100: 初见疯道人 | K100: =IF(J100="","",VLOOKUP(J100,EventNPC!A:E,5,FALSE)) ->  | L100: 2117 | M100: 风势强劲，岛与岛之间缝隙深不见底，无桥无梯。 | O100: 10005 | P100: =IF(O100=O99,P99+1,1) -> 2 | T100: =IF(R100="","","-"&VLOOKUP(R100,EventConditionConfig!A:C,3,FALSE)&IF(S100="","",CHAR(10)&"-"&VLOOKUP(S100,EventConditionConfig!A:C,3,FALSE))) ->  | AE100: =IF(A100="","",IF(U100=1,"",IF(A101="",3,1))) -> 1 | AF100: =IF(AE100=1,A101,IF(AE100=3,LEFT(A100,5)+1,"")) -> 1000503
A101: =O101*100+P101 -> 1000503 | B101: 2151 | C101: 初见疯道人 | K101: =IF(J101="","",VLOOKUP(J101,EventNPC!A:E,5,FALSE)) ->  | L101: 2118 | M101: 此处盘踞一位神秘道人，常独自站在岛边望风，仿佛等待什么。 | O101: 10005 | P101: =IF(O101=O100,P100+1,1) -> 3 | T101: =IF(R101="","","-"&VLOOKUP(R101,EventConditionConfig!A:C,3,FALSE)&IF(S101="","",CHAR(10)&"-"&VLOOKUP(S101,EventConditionConfig!A:C,3,FALSE))) ->  | AE101: =IF(A101="","",IF(U101=1,"",IF(A102="",3,1))) -> 1 | AF101: =IF(AE101=1,A102,IF(AE101=3,LEFT(A101,5)+1,"")) -> 1000504
A102: =O102*100+P102 -> 1000504 | B102: 2151 | C102: 初见疯道人 | K102: =IF(J102="","",VLOOKUP(J102,EventNPC!A:E,5,FALSE)) ->  | L102: 2119 | M102: （你尝试御剑，却在风中打转，被吹回原地） | O102: 10005 | P102: =IF(O102=O101,P101+1,1) -> 4 | T102: =IF(R102="","","-"&VLOOKUP(R102,EventConditionConfig!A:C,3,FALSE)&IF(S102="","",CHAR(10)&"-"&VLOOKUP(S102,EventConditionConfig!A:C,3,FALSE))) ->  | U102: 1 | V102: =A103 -> 1000505 | W102: 2120 | X102: 2120 | Y102: 前辈，这里的风太大，我无法飞行，请教如何才能通过？ | AE102: =IF(A102="","",IF(U102=1,"",IF(A103="",3,1))) ->  | AF102: =IF(AE102=1,A103,IF(AE102=3,LEFT(A102,5)+1,"")) -> 
A103: 1000505 | B103: 2151 | C103: 初见疯道人 | J103: 103 | K103: =IF(J103="","",VLOOKUP(J103,EventNPC!A:E,5,FALSE)) -> 疯道人 | L103: 2121 | M103: ...... | O103: 10005 | P103: 5 | T103: =IF(R103="","","-"&VLOOKUP(R103,EventConditionConfig!A:C,3,FALSE)&IF(S103="","",CHAR(10)&"-"&VLOOKUP(S103,EventConditionConfig!A:C,3,FALSE))) ->  | U103: 1 | V103: =A104 -> 1000506 | W103: 2122 | X103: 2122 | Y103: 前辈，我准备前往北海深处，寻鲲鹏。
A104: 1000506 | B104: 2151 | C104: 初见疯道人 | J104: 103 | K104: =IF(J104="","",VLOOKUP(J104,EventNPC!A:E,5,FALSE)) -> 疯道人 | L104: 2123 | M104: 鲲鹏？……世间竟还有人记得它。 | O104: 10005 | P104: 6 | T104: =IF(R104="","","-"&VLOOKUP(R104,EventConditionConfig!A:C,3,FALSE)&IF(S104="","",CHAR(10)&"-"&VLOOKUP(S104,EventConditionConfig!A:C,3,FALSE))) ->  | AE104: 1 | AF104: 1000507
A105: =O105*100+P105 -> 1000507 | B105: 2151 | C105: 初见疯道人 | J105: 103 | K105: =IF(J105="","",VLOOKUP(J105,EventNPC!A:E,5,FALSE)) -> 疯道人 | L105: 2124 | M105: （说着从手中掏出一个碎片，往空中一震，瞬间风停）过来吧。 | O105: 10005 | P105: =IF(O105=O104,P104+1,1) -> 7 | T105: =IF(R105="","","-"&VLOOKUP(R105,EventConditionConfig!A:C,3,FALSE)&IF(S105="","",CHAR(10)&"-"&VLOOKUP(S105,EventConditionConfig!A:C,3,FALSE))) ->  | AE105: =IF(A105="","",IF(U105=1,"",IF(A106="",3,1))) -> 1 | AF105: =IF(AE105=1,A106,IF(AE105=3,LEFT(A105,5)+1,"")) -> 1000508
A106: =O106*100+P106 -> 1000508 | B106: 2151 | C106: 初见疯道人 | J106: 103 | K106: =IF(J106="","",VLOOKUP(J106,EventNPC!A:E,5,FALSE)) -> 疯道人 | L106: 2125 | M106: 说吧，为何寻那鲲鹏？ | O106: 10005 | P106: =IF(O106=O105,P105+1,1) -> 8 | T106: =IF(R106="","","-"&VLOOKUP(R106,EventConditionConfig!A:C,3,FALSE)&IF(S106="","",CHAR(10)&"-"&VLOOKUP(S106,EventConditionConfig!A:C,3,FALSE))) ->  | U106: 1 | V106: =A107 -> 1000509 | W106: 2126;2127 | X106: 2126 | Y106: 冲虚真人让我去的 | Z106: 2127 | AA106: 我只是好奇.. | AE106: =IF(A106="","",IF(U106=1,"",IF(A107="",3,1))) ->  | AF106: =IF(AE106=1,A107,IF(AE106=3,LEFT(A106,5)+1,"")) -> 
A107: 1000509 | B107: 2151 | C107: 初见疯道人 | J107: 103 | K107: =IF(J107="","",VLOOKUP(J107,EventNPC!A:E,5,FALSE)) -> 疯道人 | L107: 2128 | M107: 你可知鹏飞九万里，需凭借龙卷风，才可达成？ | O107: 10005 | P107: 9 | T107: =IF(R107="","","-"&VLOOKUP(R107,EventConditionConfig!A:C,3,FALSE)&IF(S107="","",CHAR(10)&"-"&VLOOKUP(S107,EventConditionConfig!A:C,3,FALSE))) ->  | U107: 1 | V107: =A108 -> 1000510 | W107: 2129 | X107: 2129 | Y107: 请前辈赐教......
A108: 1000510 | B108: 2151 | C108: 初见疯道人 | J108: 103 | K108: =IF(J108="","",VLOOKUP(J108,EventNPC!A:E,5,FALSE)) -> 疯道人 | L108: 2130 | M108: 看你修为尚浅，跟你说多了也无用。 | O108: 10005 | P108: 10 | T108: =IF(R108="","","-"&VLOOKUP(R108,EventConditionConfig!A:C,3,FALSE)&IF(S108="","",CHAR(10)&"-"&VLOOKUP(S108,EventConditionConfig!A:C,3,FALSE))) ->  | AE108: 1 | AF108: 1000511
A109: =O109*100+P109 -> 1000511 | B109: 2151 | C109: 初见疯道人 | J109: 103 | K109: =IF(J109="","",VLOOKUP(J109,EventNPC!A:E,5,FALSE)) -> 疯道人 | L109: 2131 | M109: 再往前是我师弟的洞府了，他可不好说话。 | O109: 10005 | P109: =IF(O109=O108,P108+1,1) -> 11 | T109: =IF(R109="","","-"&VLOOKUP(R109,EventConditionConfig!A:C,3,FALSE)&IF(S109="","",CHAR(10)&"-"&VLOOKUP(S109,EventConditionConfig!A:C,3,FALSE))) ->  | AE109: =IF(A109="","",IF(U109=1,"",IF(A110="",3,1))) -> 1 | AF109: =IF(AE109=1,A110,IF(AE109=3,LEFT(A109,5)+1,"")) -> 1000512
A110: =O110*100+P110 -> 1000512 | B110: 2151 | C110: 初见疯道人 | J110: 103 | K110: =IF(J110="","",VLOOKUP(J110,EventNPC!A:E,5,FALSE)) -> 疯道人 | L110: 2132 | M110: 就在我这附近好好修炼吧，至少提升至筑基修为。 | O110: 10005 | P110: =IF(O110=O109,P109+1,1) -> 12 | T110: =IF(R110="","","-"&VLOOKUP(R110,EventConditionConfig!A:C,3,FALSE)&IF(S110="","",CHAR(10)&"-"&VLOOKUP(S110,EventConditionConfig!A:C,3,FALSE))) ->  | U110: 1 | V110: =A111 -> 1000513 | W110: 2133 | X110: 2133 | Y110: 前辈为何如此助我？ | AE110: =IF(A110="","",IF(U110=1,"",IF(A111="",3,1))) ->  | AF110: =IF(AE110=1,A111,IF(AE110=3,LEFT(A110,5)+1,"")) -> 
A111: 1000513 | B111: 2151 | C111: 初见疯道人 | J111: 103 | K111: =IF(J111="","",VLOOKUP(J111,EventNPC!A:E,5,FALSE)) -> 疯道人 | L111: 2134 | M111: （疯道人望你一眼，没有回答，但丢过来一本功法）修到[筑基-中期]再来找我。 | O111: 10005 | P111: 13 | T111: =IF(R111="","","-"&VLOOKUP(R111,EventConditionConfig!A:C,3,FALSE)&IF(S111="","",CHAR(10)&"-"&VLOOKUP(S111,EventConditionConfig!A:C,3,FALSE))) ->  | AE111: 1 | AF111: 1000514
A112: =O112*100+P112 -> 1000514 | B112: 2151 | C112: 初见疯道人 | K112: =IF(J112="","",VLOOKUP(J112,EventNPC!A:E,5,FALSE)) ->  | O112: 10005 | P112: =IF(O112=O111,P111+1,1) -> 14 | Q112: 2 | R112: 2 | T112: =IF(R112="","","-"&VLOOKUP(R112,EventConditionConfig!A:C,3,FALSE)&IF(S112="","",CHAR(10)&"-"&VLOOKUP(S112,EventConditionConfig!A:C,3,FALSE))) -> -达到境界：筑基-中期 | AE112: =IF(A112="","",IF(U112=1,"",IF(A113="",3,1))) -> 3 | AF112: =IF(AE112=1,A113,IF(AE112=3,LEFT(A112,5)+1,"")) -> 10006
T113: =IF(R113="","","-"&VLOOKUP(R113,EventConditionConfig!A:C,3,FALSE)&IF(S113="","",CHAR(10)&"-"&VLOOKUP(S113,EventConditionConfig!A:C,3,FALSE))) -> 
A114: =O114*100+P114 -> 1000601 | B114: 2152 | C114: 疯道人赠与一半风灵珠 | J114: 103 | K114: =IF(J114="","",VLOOKUP(J114,EventNPC!A:E,5,FALSE)) -> 疯道人 | L114: 2139 | M114: 你已突破筑基前期达到中期，灵力通畅，是时候去会一会我的师弟了。 | O114: 10006 | P114: =IF(O114=O113,P113+1,1) -> 1 | T114: =IF(R114="","","-"&VLOOKUP(R114,EventConditionConfig!A:C,3,FALSE)&IF(S114="","",CHAR(10)&"-"&VLOOKUP(S114,EventConditionConfig!A:C,3,FALSE))) ->  | U114: 1 | V114: 1000603;1000602 | W114: =_xlfn.TEXTJOIN(";",1,X114,Z114) -> 2140;2141 | X114: 2140 | Y114: 是的。鲲鹏之行，志在必达。 | Z114: 2141 | AA114: 看看风的尽头到底有什么。 | AE114: =IF(A114="","",IF(U114=1,"",IF(A115="",3,1))) ->  | AF114: =IF(AE114=1,A115,IF(AE114=3,LEFT(A114,5)+1,"")) -> 
A115: =O115*100+P115 -> 1000602 | B115: 2152 | C115: 疯道人赠与一半风灵珠 | J115: 103 | K115: =IF(J115="","",VLOOKUP(J115,EventNPC!A:E,5,FALSE)) -> 疯道人 | L115: 2142 | M115: （轻轻一笑）你说风的尽头……我也曾想看。 （他望向远处翻涌的云海） | O115: 10006 | P115: =IF(O115=O114,P114+1,1) -> 2 | T115: =IF(R115="","","-"&VLOOKUP(R115,EventConditionConfig!A:C,3,FALSE)&IF(S115="","",CHAR(10)&"-"&VLOOKUP(S115,EventConditionConfig!A:C,3,FALSE))) ->  | U115: 1 | V115: =A116 -> 1000603 | W115: 2140 | X115: 2140 | Y115: 是的。鲲鹏之行，志在必达。 | AE115: =IF(A115="","",IF(U115=1,"",IF(A116="",3,1))) ->  | AF115: =IF(AE115=1,A116,IF(AE115=3,LEFT(A115,5)+1,"")) -> 
A116: =O116*100+P116 -> 1000603 | B116: 2152 | C116: 疯道人赠与一半风灵珠 | J116: 103 | K116: =IF(J116="","",VLOOKUP(J116,EventNPC!A:E,5,FALSE)) -> 疯道人 | L116: 2143 | M116: 我和师弟，共守这处风眼多年。我想出去，他却偏要留。 | O116: 10006 | P116: =IF(O116=O115,P115+1,1) -> 3 | T116: =IF(R116="","","-"&VLOOKUP(R116,EventConditionConfig!A:C,3,FALSE)&IF(S116="","",CHAR(10)&"-"&VLOOKUP(S116,EventConditionConfig!A:C,3,FALSE))) ->  | AE116: =IF(A116="","",IF(U116=1,"",IF(A117="",3,1))) -> 1 | AF116: =IF(AE116=1,A117,IF(AE116=3,LEFT(A116,5)+1,"")) -> 1000604
A117: =O117*100+P117 -> 1000604 | B117: 2152 | C117: 疯道人赠与一半风灵珠 | J117: 103 | K117: =IF(J117="","",VLOOKUP(J117,EventNPC!A:E,5,FALSE)) -> 疯道人 | L117: 2144 | M117: 风灵珠碎成两半，一半在我这里，另一半……在他洞府中。 | O117: 10006 | P117: =IF(O117=O116,P116+1,1) -> 4 | T117: =IF(R117="","","-"&VLOOKUP(R117,EventConditionConfig!A:C,3,FALSE)&IF(S117="","",CHAR(10)&"-"&VLOOKUP(S117,EventConditionConfig!A:C,3,FALSE))) ->  | AE117: =IF(A117="","",IF(U117=1,"",IF(A118="",3,1))) -> 1 | AF117: =IF(AE117=1,A118,IF(AE117=3,LEFT(A117,5)+1,"")) -> 1000605
A118: =O118*100+P118 -> 1000605 | B118: 2152 | C118: 疯道人赠与一半风灵珠 | J118: 103 | K118: =IF(J118="","",VLOOKUP(J118,EventNPC!A:E,5,FALSE)) -> 疯道人 | L118: 2145 | M118: 你若想见鲲鹏，必须要集齐整个风灵珠。 | O118: 10006 | P118: =IF(O118=O117,P117+1,1) -> 5 | T118: =IF(R118="","","-"&VLOOKUP(R118,EventConditionConfig!A:C,3,FALSE)&IF(S118="","",CHAR(10)&"-"&VLOOKUP(S118,EventConditionConfig!A:C,3,FALSE))) ->  | AE118: =IF(A118="","",IF(U118=1,"",IF(A119="",3,1))) -> 1 | AF118: =IF(AE118=1,A119,IF(AE118=3,LEFT(A118,5)+1,"")) -> 1000606
A119: =O119*100+P119 -> 1000606 | B119: 2152 | C119: 疯道人赠与一半风灵珠 | J119: 103 | K119: =IF(J119="","",VLOOKUP(J119,EventNPC!A:E,5,FALSE)) -> 疯道人 | L119: 2146 | M119: 我这一半给你，可助你在大风中，来去自如。 | O119: 10006 | P119: =IF(O119=O118,P118+1,1) -> 6 | T119: =IF(R119="","","-"&VLOOKUP(R119,EventConditionConfig!A:C,3,FALSE)&IF(S119="","",CHAR(10)&"-"&VLOOKUP(S119,EventConditionConfig!A:C,3,FALSE))) ->  | AE119: =IF(A119="","",IF(U119=1,"",IF(A120="",3,1))) -> 3 | AF119: =IF(AE119=1,A120,IF(AE119=3,LEFT(A119,5)+1,"")) -> 10007
T120: =IF(R120="","","-"&VLOOKUP(R120,EventConditionConfig!A:C,3,FALSE)&IF(S120="","",CHAR(10)&"-"&VLOOKUP(S120,EventConditionConfig!A:C,3,FALSE))) -> 
A121: =O121*100+P121 -> 1000701 | B121: 2153 | C121: 没想到痴道人一来就要与你交手 | K121: =IF(J121="","",VLOOKUP(J121,EventNPC!A:E,5,FALSE)) ->  | L121: 2147 | M121: 你获得了疯道人的半颗风灵珠，在狂风中自由飞行，好不自在。 | O121: 10007 | P121: =IF(O121=O120,P120+1,1) -> 1 | T121: =IF(R121="","","-"&VLOOKUP(R121,EventConditionConfig!A:C,3,FALSE)&IF(S121="","",CHAR(10)&"-"&VLOOKUP(S121,EventConditionConfig!A:C,3,FALSE))) ->  | W121: =_xlfn.TEXTJOIN(";",1,X121,Z121) ->  | AE121: =IF(A121="","",IF(U121=1,"",IF(A122="",3,1))) -> 1 | AF121: =IF(AE121=1,A122,IF(AE121=3,LEFT(A121,5)+1,"")) -> 1000702
A122: =O122*100+P122 -> 1000702 | B122: 2153 | C122: 没想到痴道人一来就要与你交手 | K122: =IF(J122="","",VLOOKUP(J122,EventNPC!A:E,5,FALSE)) ->  | L122: 2148 | M122: 这......就是逍遥游吗？ | O122: 10007 | P122: =IF(O122=O121,P121+1,1) -> 2 | T122: =IF(R122="","","-"&VLOOKUP(R122,EventConditionConfig!A:C,3,FALSE)&IF(S122="","",CHAR(10)&"-"&VLOOKUP(S122,EventConditionConfig!A:C,3,FALSE))) ->  | W122: =_xlfn.TEXTJOIN(";",1,X122,Z122) ->  | AE122: =IF(A122="","",IF(U122=1,"",IF(A123="",3,1))) -> 1 | AF122: =IF(AE122=1,A123,IF(AE122=3,LEFT(A122,5)+1,"")) -> 1000703
A123: =O123*100+P123 -> 1000703 | B123: 2153 | C123: 没想到痴道人一来就要与你交手 | J123: 104 | K123: =IF(J123="","",VLOOKUP(J123,EventNPC!A:E,5,FALSE)) -> 痴道人 | L123: 2149 | M123: 你终于来了...... | O123: 10007 | P123: =IF(O123=O122,P122+1,1) -> 3 | T123: =IF(R123="","","-"&VLOOKUP(R123,EventConditionConfig!A:C,3,FALSE)&IF(S123="","",CHAR(10)&"-"&VLOOKUP(S123,EventConditionConfig!A:C,3,FALSE))) ->  | U123: 1 | V123: =A124 -> 1000704 | W123: =_xlfn.TEXTJOIN(";",1,X123,Z123) -> 2150 | X123: 2150 | Y123: 你知道我要来？ | AE123: =IF(A123="","",IF(U123=1,"",IF(A124="",3,1))) ->  | AF123: =IF(AE123=1,A124,IF(AE123=3,LEFT(A123,5)+1,"")) -> 
A124: =O124*100+P124 -> 1000704 | B124: 2153 | C124: 没想到痴道人一来就要与你交手 | J124: 104 | K124: =IF(J124="","",VLOOKUP(J124,EventNPC!A:E,5,FALSE)) -> 痴道人 | L124: 2154 | M124: 多说无益，我早已感应到你身上的半颗风灵珠。必是那疯老头让来的。出手吧！ | O124: 10007 | P124: =IF(O124=O123,P123+1,1) -> 4 | T124: =IF(R124="","","-"&VLOOKUP(R124,EventConditionConfig!A:C,3,FALSE)&IF(S124="","",CHAR(10)&"-"&VLOOKUP(S124,EventConditionConfig!A:C,3,FALSE))) ->  | U124: 2 | V124: 100004 | W124: =_xlfn.TEXTJOIN(";",1,X124,Z124) ->  | AE124: 2 | AF124: 1000705;101
A125: 1000705 | B125: 2153 | C125: 没想到痴道人一来就要与你交手 | J125: 104 | K125: =IF(J125="","",VLOOKUP(J125,EventNPC!A:E,5,FALSE)) -> 痴道人 | L125: 2155 | M125: （被击倒在一边）够了！ | O125: 10007 | P125: 5 | T125: =IF(R125="","","-"&VLOOKUP(R125,EventConditionConfig!A:C,3,FALSE)&IF(S125="","",CHAR(10)&"-"&VLOOKUP(S125,EventConditionConfig!A:C,3,FALSE))) ->  | W125: =_xlfn.TEXTJOIN(";",1,X125,Z125) ->  | AE125: =IF(A125="","",IF(U125=1,"",IF(A126="",3,1))) -> 3 | AF125: =IF(AE125=1,A126,IF(AE125=3,LEFT(A125,5)+1,"")) -> 10008
T126: =IF(R126="","","-"&VLOOKUP(R126,EventConditionConfig!A:C,3,FALSE)&IF(S126="","",CHAR(10)&"-"&VLOOKUP(S126,EventConditionConfig!A:C,3,FALSE))) -> 
A127: =O127*100+P127 -> 1000801 | B127: 2156 | C127: 疯痴相聚 | J127: 104 | K127: =IF(J127="","",VLOOKUP(J127,EventNPC!A:E,5,FALSE)) -> 痴道人 | L127: 2157 | M127: ...... | O127: 10008 | P127: =IF(O127=O126,P126+1,1) -> 1 | T127: =IF(R127="","","-"&VLOOKUP(R127,EventConditionConfig!A:C,3,FALSE)&IF(S127="","",CHAR(10)&"-"&VLOOKUP(S127,EventConditionConfig!A:C,3,FALSE))) ->  | U127: 1 | V127: =A128 -> 1000802 | W127: =_xlfn.TEXTJOIN(";",1,X127,Z127) -> 2158 | X127: 2158 | Y127: （你靠近痴道人）你真的想一直留在这里？你师兄说你不肯走。 | AE127: =IF(A127="","",IF(U127=1,"",IF(A128="",3,1))) ->  | AF127: =IF(AE127=1,A128,IF(AE127=3,LEFT(A127,5)+1,"")) -> 
A128: 1000802 | B128: 2156 | C128: 疯痴相聚 | J128: 104 | K128: =IF(J128="","",VLOOKUP(J128,EventNPC!A:E,5,FALSE)) -> 痴道人 | L128: 2159 | M128: 你修炼的时候，有没有过那种感觉——身边的人都在往前走，只有你还在原地。 | O128: 10008 | P128: 2 | T128: =IF(R128="","","-"&VLOOKUP(R128,EventConditionConfig!A:C,3,FALSE)&IF(S128="","",CHAR(10)&"-"&VLOOKUP(S128,EventConditionConfig!A:C,3,FALSE))) ->  | AE128: 1 | AF128: 1000803
A129: =O129*100+P129 -> 1000803 | B129: 2156 | C129: 疯痴相聚 | J129: 104 | K129: =IF(J129="","",VLOOKUP(J129,EventNPC!A:E,5,FALSE)) -> 痴道人 | L129: 2160 | M129: 我师兄，他悟性极高，一年就能走我三年的路。我不服气，想努力赶上他。 | O129: 10008 | P129: =IF(O129=O128,P128+1,1) -> 3 | T129: =IF(R129="","","-"&VLOOKUP(R129,EventConditionConfig!A:C,3,FALSE)&IF(S129="","",CHAR(10)&"-"&VLOOKUP(S129,EventConditionConfig!A:C,3,FALSE))) ->  | U129: 1 | V129: =A130 -> 1000804 | W129: 2161 | X129: 2161 | Y129: 然后呢？ | AE129: =IF(A129="","",IF(U129=1,"",IF(A130="",3,1))) ->  | AF129: =IF(AE129=1,A130,IF(AE129=3,LEFT(A129,5)+1,"")) -> 
A130: =O130*100+P130 -> 1000804 | B130: 2156 | C130: 疯痴相聚 | J130: 104 | K130: =IF(J130="","",VLOOKUP(J130,EventNPC!A:E,5,FALSE)) -> 痴道人 | L130: 2162 | M130: 我一直苦心修炼，可人也困在这儿了……越修炼，越困难，修不动了。 | O130: 10008 | P130: =IF(O130=O129,P129+1,1) -> 4 | T130: =IF(R130="","","-"&VLOOKUP(R130,EventConditionConfig!A:C,3,FALSE)&IF(S130="","",CHAR(10)&"-"&VLOOKUP(S130,EventConditionConfig!A:C,3,FALSE))) ->  | AE130: =IF(A130="","",IF(U130=1,"",IF(A131="",3,1))) -> 1 | AF130: =IF(AE130=1,A131,IF(AE130=3,LEFT(A130,5)+1,"")) -> 1000805
A131: =O131*100+P131 -> 1000805 | B131: 2156 | C131: 疯痴相聚 | K131: =IF(J131="","",VLOOKUP(J131,EventNPC!A:E,5,FALSE)) ->  | L131: 2163 | M131: [此时，疯道人踏风而至，就在几步之外] | O131: 10008 | P131: =IF(O131=O130,P130+1,1) -> 5 | T131: =IF(R131="","","-"&VLOOKUP(R131,EventConditionConfig!A:C,3,FALSE)&IF(S131="","",CHAR(10)&"-"&VLOOKUP(S131,EventConditionConfig!A:C,3,FALSE))) ->  | AE131: =IF(A131="","",IF(U131=1,"",IF(A132="",3,1))) -> 1 | AF131: =IF(AE131=1,A132,IF(AE131=3,LEFT(A131,5)+1,"")) -> 1000806
A132: =O132*100+P132 -> 1000806 | B132: 2156 | C132: 疯痴相聚 | J132: 103 | K132: =IF(J132="","",VLOOKUP(J132,EventNPC!A:E,5,FALSE)) -> 疯道人 | L132: 2164 | M132: 师弟，你修着修着，就不记得一开始，是为了什么而修行。 | O132: 10008 | P132: =IF(O132=O131,P131+1,1) -> 6 | T132: =IF(R132="","","-"&VLOOKUP(R132,EventConditionConfig!A:C,3,FALSE)&IF(S132="","",CHAR(10)&"-"&VLOOKUP(S132,EventConditionConfig!A:C,3,FALSE))) ->  | AE132: =IF(A132="","",IF(U132=1,"",IF(A133="",3,1))) -> 1 | AF132: =IF(AE132=1,A133,IF(AE132=3,LEFT(A132,5)+1,"")) -> 1000807
A133: =O133*100+P133 -> 1000807 | B133: 2156 | C133: 疯痴相聚 | J133: 104 | K133: =IF(J133="","",VLOOKUP(J133,EventNPC!A:E,5,FALSE)) -> 痴道人 | L133: 2165 | M133: （抬头）......我，我真的不记得了。 | O133: 10008 | P133: =IF(O133=O132,P132+1,1) -> 7 | T133: =IF(R133="","","-"&VLOOKUP(R133,EventConditionConfig!A:C,3,FALSE)&IF(S133="","",CHAR(10)&"-"&VLOOKUP(S133,EventConditionConfig!A:C,3,FALSE))) ->  | AE133: =IF(A133="","",IF(U133=1,"",IF(A134="",3,1))) -> 1 | AF133: =IF(AE133=1,A134,IF(AE133=3,LEFT(A133,5)+1,"")) -> 1000808
A134: =O134*100+P134 -> 1000808 | B134: 2156 | C134: 疯痴相聚 | J134: 103 | K134: =IF(J134="","",VLOOKUP(J134,EventNPC!A:E,5,FALSE)) -> 疯道人 | L134: 2166 | M134: 那就放下风灵珠，和我出去走走。 | O134: 10008 | P134: =IF(O134=O133,P133+1,1) -> 8 | T134: =IF(R134="","","-"&VLOOKUP(R134,EventConditionConfig!A:C,3,FALSE)&IF(S134="","",CHAR(10)&"-"&VLOOKUP(S134,EventConditionConfig!A:C,3,FALSE))) ->  | AE134: =IF(A134="","",IF(U134=1,"",IF(A135="",3,1))) -> 1 | AF134: =IF(AE134=1,A135,IF(AE134=3,LEFT(A134,5)+1,"")) -> 1000809
A135: =O135*100+P135 -> 1000809 | B135: 2156 | C135: 疯痴相聚 | J135: 103 | K135: =IF(J135="","",VLOOKUP(J135,EventNPC!A:E,5,FALSE)) -> 疯道人 | L135: 2167 | M135: [痴道人楞了一下，片刻后轻轻点头] | O135: 10008 | P135: =IF(O135=O134,P134+1,1) -> 9 | Q135: =_xlfn.TEXTJOIN(";",1,R135:S135) ->  | T135: =IF(R135="","","-"&VLOOKUP(R135,EventConditionConfig!A:C,3,FALSE)&IF(S135="","",CHAR(10)&"-"&VLOOKUP(S135,EventConditionConfig!A:C,3,FALSE))) ->  | AE135: =IF(A135="","",IF(U135=1,"",IF(A136="",3,1))) -> 1 | AF135: =IF(AE135=1,A136,IF(AE135=3,LEFT(A135,5)+1,"")) -> 1000810
A136: =O136*100+P136 -> 1000810 | B136: 2156 | C136: 疯痴相聚 | K136: =IF(J136="","",VLOOKUP(J136,EventNPC!A:E,5,FALSE)) ->  | L136: 2168 | M136: [突然..洞府周围灵气汇聚，快速涌入痴道人的身体.] | O136: 10008 | P136: =IF(O136=O135,P135+1,1) -> 10 | T136: =IF(R136="","","-"&VLOOKUP(R136,EventConditionConfig!A:C,3,FALSE)&IF(S136="","",CHAR(10)&"-"&VLOOKUP(S136,EventConditionConfig!A:C,3,FALSE))) ->  | U136: 1 | V136: =A137 -> 1000811 | W136: 2169 | X136: 2169 | Y136: 前辈，为何灵气会动！ | AE136: =IF(A136="","",IF(U136=1,"",IF(A137="",3,1))) ->  | AF136: =IF(AE136=1,A137,IF(AE136=3,LEFT(A136,5)+1,"")) -> 
A137: =O137*100+P137 -> 1000811 | B137: 2156 | C137: 疯痴相聚 | J137: 103 | K137: =IF(J137="","",VLOOKUP(J137,EventNPC!A:E,5,FALSE)) -> 疯道人 | L137: 2170 | M137: 恭喜师弟，突破心魔。 | O137: 10008 | P137: =IF(O137=O136,P136+1,1) -> 11 | T137: =IF(R137="","","-"&VLOOKUP(R137,EventConditionConfig!A:C,3,FALSE)&IF(S137="","",CHAR(10)&"-"&VLOOKUP(S137,EventConditionConfig!A:C,3,FALSE))) ->  | AE137: =IF(A137="","",IF(U137=1,"",IF(A138="",3,1))) -> 1 | AF137: =IF(AE137=1,A138,IF(AE137=3,LEFT(A137,5)+1,"")) -> 1000812
A138: =O138*100+P138 -> 1000812 | B138: 2156 | C138: 疯痴相聚 | J138: 104 | K138: =IF(J138="","",VLOOKUP(J138,EventNPC!A:E,5,FALSE)) -> 痴道人 | L138: =MAX(B137,L137,D137,X137,Z137)+1 -> 2171 | M138: 多谢师兄！ | O138: 10008 | P138: =IF(O138=O137,P137+1,1) -> 12 | T138: =IF(R138="","","-"&VLOOKUP(R138,EventConditionConfig!A:C,3,FALSE)&IF(S138="","",CHAR(10)&"-"&VLOOKUP(S138,EventConditionConfig!A:C,3,FALSE))) ->  | U138: 1 | V138: =A139 -> 1000813 | W138: 2172;2173 | X138: =L138+1 -> 2172 | Y138: 原来如此… | Z138: =X138+1 -> 2173 | AA138: 请前辈赐我风灵珠。 | AE138: =IF(A138="","",IF(U138=1,"",IF(A139="",3,1))) ->  | AF138: =IF(AE138=1,A139,IF(AE138=3,LEFT(A138,5)+1,"")) -> 
A139: =O139*100+P139 -> 1000813 | B139: 2156 | C139: 疯痴相聚 | J139: 104 | K139: =IF(J139="","",VLOOKUP(J139,EventNPC!A:E,5,FALSE)) -> 痴道人 | L139: =MAX(B138,L138,D138,X138,Z138)+1 -> 2174 | M139: 小友莫急… (说罢，痴道人将风灵珠的碎片合成了一颗完整的风灵珠) | O139: 10008 | P139: =IF(O139=O138,P138+1,1) -> 13 | T139: =IF(R139="","","-"&VLOOKUP(R139,EventConditionConfig!A:C,3,FALSE)&IF(S139="","",CHAR(10)&"-"&VLOOKUP(S139,EventConditionConfig!A:C,3,FALSE))) ->  | AE139: =IF(A139="","",IF(U139=1,"",IF(A140="",3,1))) -> 1 | AF139: =IF(AE139=1,A140,IF(AE139=3,LEFT(A139,5)+1,"")) -> 1000814
A140: =O140*100+P140 -> 1000814 | B140: 2156 | C140: 疯痴相聚 | J140: 104 | K140: =IF(J140="","",VLOOKUP(J140,EventNPC!A:E,5,FALSE)) -> 痴道人 | L140: =MAX(B139,L139,D139,X139,Z139)+1 -> 2175 | M140: 拿好了，这风啊……来一回，不容易。 | O140: 10008 | P140: =IF(O140=O139,P139+1,1) -> 14 | T140: =IF(R140="","","-"&VLOOKUP(R140,EventConditionConfig!A:C,3,FALSE)&IF(S140="","",CHAR(10)&"-"&VLOOKUP(S140,EventConditionConfig!A:C,3,FALSE))) ->  | AE140: =IF(A140="","",IF(U140=1,"",IF(A141="",3,1))) -> 3 | AF140: =IF(AE140=1,A141,IF(AE140=3,LEFT(A140,5)+1,"")) -> 10009
T141: =IF(R141="","","-"&VLOOKUP(R141,EventConditionConfig!A:C,3,FALSE)&IF(S141="","",CHAR(10)&"-"&VLOOKUP(S141,EventConditionConfig!A:C,3,FALSE))) -> 
A142: =O142*100+P142 -> 1000901 | B142: =IF(B141="",MAX(Z140,X140,L140)+1,B141) -> 2176 | C142: 达到筑基后期 | J142: 100 | K142: =IF(J142="","",VLOOKUP(J142,EventNPC!A:E,5,FALSE)) -> 玩家 | L142: =IF(P142=1,B142+1,MAX(B141,L141,D141,X141,Z141)+1) -> 2177 | M142: 完整的风灵珠果然不同凡响，我可以更大的狂风中穿行了。 | O142: 10009 | P142: =IF(O142=O141,P141+1,1) -> 1 | T142: =IF(R142="","","-"&VLOOKUP(R142,EventConditionConfig!A:C,3,FALSE)&IF(S142="","",CHAR(10)&"-"&VLOOKUP(S142,EventConditionConfig!A:C,3,FALSE))) ->  | W142: =_xlfn.TEXTJOIN(";",1,X142,Z142) ->  | AE142: =IF(A142="","",IF(U142=1,"",IF(A143="",3,1))) -> 1 | AF142: =IF(AE142=1,A143,IF(AE142=3,LEFT(A142,5)+1,"")) -> 1000902
A143: =O143*100+P143 -> 1000902 | B143: =IF(B142="",MAX(Z141,X141,L141)+1,B142) -> 2176 | C143: 达到筑基后期 | J143: 100 | K143: =IF(J143="","",VLOOKUP(J143,EventNPC!A:E,5,FALSE)) -> 玩家 | L143: =IF(P143=1,B143+1,MAX(B142,L142,D142,X142,Z142)+1) -> 2178 | M143: 前方似乎有不少高阶妖兽，我先在此地提升一些修为吧。 | O143: 10009 | P143: =IF(O143=O142,P142+1,1) -> 2 | T143: =IF(R143="","","-"&VLOOKUP(R143,EventConditionConfig!A:C,3,FALSE)&IF(S143="","",CHAR(10)&"-"&VLOOKUP(S143,EventConditionConfig!A:C,3,FALSE))) ->  | W143: =_xlfn.TEXTJOIN(";",1,X143,Z143) ->  | AE143: =IF(A143="","",IF(U143=1,"",IF(A144="",3,1))) -> 1 | AF143: =IF(AE143=1,A144,IF(AE143=3,LEFT(A143,5)+1,"")) -> 1000903
A144: =O144*100+P144 -> 1000903 | B144: =IF(B143="",MAX(Z142,X142,L142)+1,B143) -> 2176 | C144: 达到筑基后期 | J144: 100 | K144: =IF(J144="","",VLOOKUP(J144,EventNPC!A:E,5,FALSE)) -> 玩家 | L144: =IF(P144=1,B144+1,MAX(B143,L143,D143,X143,Z143)+1) -> 2179 | M144: 终于筑基中期了，继续寻找冲虚提到的“七道心境”吧，不知鲲鹏是否会给我答案。 | O144: 10009 | P144: =IF(O144=O143,P143+1,1) -> 3 | Q144: 8 | R144: 8 | T144: =IF(R144="","","-"&VLOOKUP(R144,EventConditionConfig!A:C,3,FALSE)&IF(S144="","",CHAR(10)&"-"&VLOOKUP(S144,EventConditionConfig!A:C,3,FALSE))) -> -达到境界：筑基-后期 | W144: =_xlfn.TEXTJOIN(";",1,X144,Z144) ->  | AE144: =IF(A144="","",IF(U144=1,"",IF(A145="",3,1))) -> 3 | AF144: =IF(AE144=1,A145,IF(AE144=3,LEFT(A144,5)+1,"")) -> 10010
T145: =IF(R145="","","-"&VLOOKUP(R145,EventConditionConfig!A:C,3,FALSE)&IF(S145="","",CHAR(10)&"-"&VLOOKUP(S145,EventConditionConfig!A:C,3,FALSE))) -> 
A146: =O146*100+P146 -> 1001001 | B146: =IF(B145="",MAX(Z144,X144,L144)+1,B145) -> 2180 | C146: 妖兽横行 | K146: =IF(J146="","",VLOOKUP(J146,EventNPC!A:E,5,FALSE)) ->  | O146: =IF(O145="",O144+1,O145) -> 10010 | P146: =IF(O146=O145,P145+1,1) -> 1 | Q146: 9 | R146: 9 | T146: =IF(R146="","","-"&VLOOKUP(R146,EventConditionConfig!A:C,3,FALSE)&IF(S146="","",CHAR(10)&"-"&VLOOKUP(S146,EventConditionConfig!A:C,3,FALSE))) -> -击杀妖兽 | W146: =_xlfn.TEXTJOIN(";",1,X146,Z146) ->  | AE146: =IF(A146="","",IF(U146=1,"",IF(A147="",3,1))) -> 3 | AF146: =IF(AE146=1,A147,IF(AE146=3,LEFT(A146,5)+1,"")) -> 10011
T147: =IF(R147="","","-"&VLOOKUP(R147,EventConditionConfig!A:C,3,FALSE)&IF(S147="","",CHAR(10)&"-"&VLOOKUP(S147,EventConditionConfig!A:C,3,FALSE))) -> 
A148: =O148*100+P148 -> 1001101 | B148: =IF(B147="",MAX(Z146,X146,L146,B146,D146)+1,B147) -> 2181 | C148: 遇见鲲鹏 | K148: =IF(J148="","",VLOOKUP(J148,EventNPC!A:E,5,FALSE)) ->  | L148: =IF(P148=1,B148+1,MAX(B147,L147,D147,X147,Z147)+1) -> 2182 | M148: 鲲鹏需要去南海最深处的天池，可缺少龙卷风，没有大风，大鹏无法飞起来 | O148: =IF(O147="",O146+1,O147) -> 10011 | P148: =IF(O148=O147,P147+1,1) -> 1 | T148: =IF(R148="","","-"&VLOOKUP(R148,EventConditionConfig!A:C,3,FALSE)&IF(S148="","",CHAR(10)&"-"&VLOOKUP(S148,EventConditionConfig!A:C,3,FALSE))) ->  | W148: =_xlfn.TEXTJOIN(";",1,X148,Z148) ->  | AE148: =IF(A148="","",IF(U148=1,"",IF(A149="",3,1))) -> 3 | AF148: =IF(AE148=1,A149,IF(AE148=3,LEFT(A148,5)+1,"")) -> 10012
T149: =IF(R149="","","-"&VLOOKUP(R149,EventConditionConfig!A:C,3,FALSE)&IF(S149="","",CHAR(10)&"-"&VLOOKUP(S149,EventConditionConfig!A:C,3,FALSE))) -> 
A150: =O150*100+P150 -> 1001201 | B150: =IF(B149="",MAX(Z148,X148,L148,B148,D148)+1,B149) -> 2183 | C150: 尧让天下 | D150: =IF(E150="","",B150+1) -> 2184 | E150: 倾听尧帝的烦恼 | K150: =IF(J150="","",VLOOKUP(J150,EventNPC!A:E,5,FALSE)) ->  | L150: =IF(M150="","",IF(P150=1,MAX(D150,B150)+1,MAX(B149,L149,D149,X149,Z149)+1)) -> 2185 | M150: 你踏入帝尧治下的仙域——一片祥和之地，灵气充沛，民众安居，仿佛世外桃源。 | O150: =IF(O149="",O148+1,O149) -> 10012 | P150: =IF(O150=O149,P149+1,1) -> 1 | T150: =IF(R150="","","-"&VLOOKUP(R150,EventConditionConfig!A:C,3,FALSE)&IF(S150="","",CHAR(10)&"-"&VLOOKUP(S150,EventConditionConfig!A:C,3,FALSE))) ->  | W150: =_xlfn.TEXTJOIN(";",1,X150,Z150) ->  | AE150: =IF(A150="","",IF(U150=1,"",IF(A151="",3,1))) -> 1 | AF150: =IF(AE150=1,A151,IF(AE150=3,LEFT(A150,5)+1,"")) -> 1001202
A151: =O151*100+P151 -> 1001202 | B151: 2183 | C151: 尧让天下 | D151: =IF(E151="","",B151+1) -> 2184 | E151: 倾听尧帝的烦恼 | K151: =IF(J151="","",VLOOKUP(J151,EventNPC!A:E,5,FALSE)) ->  | L151: =IF(M151="","",IF(P151=1,MAX(D151,B151)+1,MAX(B150,L150,D150,X150,Z150)+1)) -> 2186 | M151: 然而，这位千年帝君，却眉宇间有难掩的忧色。 | O151: 10012 | P151: =IF(O151=O150,P150+1,1) -> 2 | T151: =IF(R151="","","-"&VLOOKUP(R151,EventConditionConfig!A:C,3,FALSE)&IF(S151="","",CHAR(10)&"-"&VLOOKUP(S151,EventConditionConfig!A:C,3,FALSE))) ->  | AE151: =IF(A151="","",IF(U151=1,"",IF(A152="",3,1))) -> 1 | AF151: =IF(AE151=1,A152,IF(AE151=3,LEFT(A151,5)+1,"")) -> 1001203
A152: =O152*100+P152 -> 1001203 | B152: 2183 | C152: 尧让天下 | D152: 2184 | E152: 倾听尧帝的烦恼 | K152: =IF(J152="","",VLOOKUP(J152,EventNPC!A:E,5,FALSE)) ->  | L152: 2187 | M152: （你根据逍遥铃的指引，找到了尧） | O152: 10012 | P152: =IF(O152=O151,P151+1,1) -> 3 | T152: =IF(R152="","","-"&VLOOKUP(R152,EventConditionConfig!A:C,3,FALSE)&IF(S152="","",CHAR(10)&"-"&VLOOKUP(S152,EventConditionConfig!A:C,3,FALSE))) ->  | U152: 1 | V152: =A153 -> 1001204 | W152: 2188 | X152: =IF(Y152="","",L152+1) -> 2188 | Y152: 拜见帝尧，晚辈受冲虚真人的指引，游历到此处。 | AE152: =IF(A152="","",IF(U152=1,"",IF(A153="",3,1))) ->  | AF152: =IF(AE152=1,A153,IF(AE152=3,LEFT(A152,5)+1,"")) -> 
A153: =O153*100+P153 -> 1001204 | B153: 2183 | C153: 尧让天下 | D153: 2184 | E153: 倾听尧帝的烦恼 | J153: 105 | K153: =IF(J153="","",VLOOKUP(J153,EventNPC!A:E,5,FALSE)) -> 尧帝 | L153: 2189 | M153: （缓缓回头，脸上带着淡淡忧虑）冲虚真人吗？我也许久没见了.. | O153: 10012 | P153: =IF(O153=O152,P152+1,1) -> 4 | T153: =IF(R153="","","-"&VLOOKUP(R153,EventConditionConfig!A:C,3,FALSE)&IF(S153="","",CHAR(10)&"-"&VLOOKUP(S153,EventConditionConfig!A:C,3,FALSE))) ->  | AE153: =IF(A153="","",IF(U153=1,"",IF(A154="",3,1))) -> 1 | AF153: =IF(AE153=1,A154,IF(AE153=3,LEFT(A153,5)+1,"")) -> 1001205
A154: =O154*100+P154 -> 1001205 | B154: 2183 | C154: 尧让天下 | D154: 2184 | E154: 倾听尧帝的烦恼 | J154: 105 | K154: =IF(J154="","",VLOOKUP(J154,EventNPC!A:E,5,FALSE)) -> 尧帝 | L154: 2190 | M154: (尧帝邀你来到一高处) 小友，你看此处景致如何？ | O154: 10012 | P154: =IF(O154=O153,P153+1,1) -> 5 | T154: =IF(R154="","","-"&VLOOKUP(R154,EventConditionConfig!A:C,3,FALSE)&IF(S154="","",CHAR(10)&"-"&VLOOKUP(S154,EventConditionConfig!A:C,3,FALSE))) ->  | U154: 1 | V154: =A155 -> 1001206 | W154: 2191;2192 | X154: 2191 | Y154: 万象更新，灵气环绕，是修行的福地。 | Z154: =IF(AA154="","",X154+1) -> 2192 | AA154: 国泰民安，仙人治理，世间罕见。 | AE154: =IF(A154="","",IF(U154=1,"",IF(A155="",3,1))) ->  | AF154: =IF(AE154=1,A155,IF(AE154=3,LEFT(A154,5)+1,"")) -> 
A155: =O155*100+P155 -> 1001206 | B155: 2183 | C155: 尧让天下 | D155: 2184 | E155: 倾听尧帝的烦恼 | J155: 105 | K155: =IF(J155="","",VLOOKUP(J155,EventNPC!A:E,5,FALSE)) -> 尧帝 | L155: 2193 | M155: （叹息）是啊，人人自在，唯我不自在。这些年来，我境界难以寸进，已有百年。 | O155: 10012 | P155: =IF(O155=O154,P154+1,1) -> 6 | T155: =IF(R155="","","-"&VLOOKUP(R155,EventConditionConfig!A:C,3,FALSE)&IF(S155="","",CHAR(10)&"-"&VLOOKUP(S155,EventConditionConfig!A:C,3,FALSE))) ->  | U155: 1 | V155: =A156 -> 1001207 | W155: 2194 | X155: 2194 | Y155: 帝尧何出此言？ | AE155: =IF(A155="","",IF(U155=1,"",IF(A156="",3,1))) ->  | AF155: =IF(AE155=1,A156,IF(AE155=3,LEFT(A155,5)+1,"")) -> 
A156: =O156*100+P156 -> 1001207 | B156: 2183 | C156: 尧让天下 | D156: 2184 | E156: 倾听尧帝的烦恼 | J156: 105 | K156: =IF(J156="","",VLOOKUP(J156,EventNPC!A:E,5,FALSE)) -> 尧帝 | L156: 2195 | M156: 你等散修，自由自在，来去如风，可曾体会过身负重任的滋味？ | O156: 10012 | P156: =IF(O156=O155,P155+1,1) -> 7 | T156: =IF(R156="","","-"&VLOOKUP(R156,EventConditionConfig!A:C,3,FALSE)&IF(S156="","",CHAR(10)&"-"&VLOOKUP(S156,EventConditionConfig!A:C,3,FALSE))) ->  | U156: 1 | V156: =A157 -> 1001208 | W156: 2196 | X156: 2196 | Y156: 也有重担，却未必如帝尧这样复杂。 | AE156: =IF(A156="","",IF(U156=1,"",IF(A157="",3,1))) ->  | AF156: =IF(AE156=1,A157,IF(AE156=3,LEFT(A156,5)+1,"")) -> 
A157: =O157*100+P157 -> 1001208 | B157: 2183 | C157: 尧让天下 | D157: 2184 | E157: 倾听尧帝的烦恼 | J157: 105 | K157: =IF(J157="","",VLOOKUP(J157,EventNPC!A:E,5,FALSE)) -> 尧帝 | L157: 2197 | M157: （微微一笑，摇头）天下如画卷，画卷再美，日夜背负，也终是负担。 | O157: 10012 | P157: =IF(O157=O156,P156+1,1) -> 8 | T157: =IF(R157="","","-"&VLOOKUP(R157,EventConditionConfig!A:C,3,FALSE)&IF(S157="","",CHAR(10)&"-"&VLOOKUP(S157,EventConditionConfig!A:C,3,FALSE))) ->  | U157: 1 | V157: =A158 -> 1001209 | W157: 2198 | X157: 2198 | Y157: ...... | AE157: =IF(A157="","",IF(U157=1,"",IF(A158="",3,1))) ->  | AF157: =IF(AE157=1,A158,IF(AE157=3,LEFT(A157,5)+1,"")) -> 
A158: =O158*100+P158 -> 1001209 | B158: 2183 | C158: 尧让天下 | D158: 2184 | E158: 倾听尧帝的烦恼 | J158: 105 | K158: =IF(J158="","",VLOOKUP(J158,EventNPC!A:E,5,FALSE)) -> 尧帝 | L158: 2199 | M158: （凝望远方云海）深山之中有位贤士，名为许由，素有盛名，我曾多次请他出山，但未成如愿。 | O158: 10012 | P158: =IF(O158=O157,P157+1,1) -> 9 | T158: =IF(R158="","","-"&VLOOKUP(R158,EventConditionConfig!A:C,3,FALSE)&IF(S158="","",CHAR(10)&"-"&VLOOKUP(S158,EventConditionConfig!A:C,3,FALSE))) ->  | AE158: =IF(A158="","",IF(U158=1,"",IF(A159="",3,1))) -> 1 | AF158: =IF(AE158=1,A159,IF(AE158=3,LEFT(A158,5)+1,"")) -> 1001210
A159: =O159*100+P159 -> 1001210 | B159: 2183 | C159: 尧让天下 | D159: 2184 | E159: 倾听尧帝的烦恼 | J159: 105 | K159: =IF(J159="","",VLOOKUP(J159,EventNPC!A:E,5,FALSE)) -> 尧帝 | L159: 2200 | M159: 我甚至提出让天下于他，他也不为所动。 | O159: 10012 | P159: =IF(O159=O158,P158+1,1) -> 10 | T159: =IF(R159="","","-"&VLOOKUP(R159,EventConditionConfig!A:C,3,FALSE)&IF(S159="","",CHAR(10)&"-"&VLOOKUP(S159,EventConditionConfig!A:C,3,FALSE))) ->  | U159: 1 | V159: =A160 -> 1001211 | W159: 2201 | X159: 2201 | Y159: 世间竟然有此奇人？ | AE159: =IF(A159="","",IF(U159=1,"",IF(A160="",3,1))) ->  | AF159: =IF(AE159=1,A160,IF(AE159=3,LEFT(A159,5)+1,"")) -> 
A160: =O160*100+P160 -> 1001211 | B160: 2183 | C160: 尧让天下 | D160: 2184 | E160: 倾听尧帝的烦恼 | J160: 105 | K160: =IF(J160="","",VLOOKUP(J160,EventNPC!A:E,5,FALSE)) -> 尧帝 | L160: 2202 | M160: （凝望远方云海）若小友有空，帮我再请许由出山，我定当感谢。 | O160: 10012 | P160: =IF(O160=O159,P159+1,1) -> 11 | T160: =IF(R160="","","-"&VLOOKUP(R160,EventConditionConfig!A:C,3,FALSE)&IF(S160="","",CHAR(10)&"-"&VLOOKUP(S160,EventConditionConfig!A:C,3,FALSE))) ->  | U160: 1 | V160: =A161 -> 1001212 | W160: 2203 | X160: 2203 | Y160: 好的，既然来了，我就走一趟。 | AE160: =IF(A160="","",IF(U160=1,"",IF(A161="",3,1))) ->  | AF160: =IF(AE160=1,A161,IF(AE160=3,LEFT(A160,5)+1,"")) -> 
A161: =O161*100+P161 -> 1001212 | B161: 2183 | C161: 尧让天下 | D161: 2184 | E161: 倾听尧帝的烦恼 | K161: =IF(J161="","",VLOOKUP(J161,EventNPC!A:E,5,FALSE)) ->  | O161: 10012 | P161: =IF(O161=O160,P160+1,1) -> 12 | T161: =IF(R161="","","-"&VLOOKUP(R161,EventConditionConfig!A:C,3,FALSE)&IF(S161="","",CHAR(10)&"-"&VLOOKUP(S161,EventConditionConfig!A:C,3,FALSE))) ->  | AE161: =IF(A161="","",IF(U161=1,"",IF(A162="",3,1))) -> 3 | AF161: =IF(AE161=1,A162,IF(AE161=3,LEFT(A161,5)+1,"")) -> 10013
T162: =IF(R162="","","-"&VLOOKUP(R162,EventConditionConfig!A:C,3,FALSE)&IF(S162="","",CHAR(10)&"-"&VLOOKUP(S162,EventConditionConfig!A:C,3,FALSE))) -> 
A163: =O163*100+P163 -> 1001301 | B163: =IF(B162="",MAX(Z161,X161,L161,B161,D161,Z160,X160,L160)+1,B162) -> 2204 | C163: 访贤许由 | D163: =IF(E163="","",B163+1) -> 2205 | E163: 听一听这位尧帝口中的贤士有何说法 | K163: =IF(J163="","",VLOOKUP(J163,EventNPC!A:E,5,FALSE)) ->  | L163: =IF(M163="","",IF(P163=1,MAX(D163,B163)+1,MAX(B162,L162,D162,X162,Z162)+1)) -> 2206 | M163: 你循帝尧所言，御剑前往幽山秘境。此处灵气绵长，古木参天，溪水潺潺。 | O163: =IF(O162="",O161+1,O162) -> 10013 | P163: =IF(O163=O162,P162+1,1) -> 1 | T163: =IF(R163="","","-"&VLOOKUP(R163,EventConditionConfig!A:C,3,FALSE)&IF(S163="","",CHAR(10)&"-"&VLOOKUP(S163,EventConditionConfig!A:C,3,FALSE))) ->  | W163: =_xlfn.TEXTJOIN(";",1,X163,Z163) ->  | X163: =IF(Y163="","",L163+1) ->  | Z163: =IF(AA163="","",X163+1) ->  | AE163: =IF(A163="","",IF(U163=1,"",IF(A164="",3,1))) -> 1 | AF163: =IF(AE163=1,A164,IF(AE163=3,LEFT(A163,5)+1,"")) -> 1001302
A164: =O164*100+P164 -> 1001302 | B164: 2204 | C164: 访贤许由 | D164: =IF(E164="","",B164+1) -> 2205 | E164: 听一听这位尧帝口中的贤士有何说法 | K164: =IF(J164="","",VLOOKUP(J164,EventNPC!A:E,5,FALSE)) ->  | L164: =IF(M164="","",IF(P164=1,MAX(D164,B164)+1,MAX(B163,L163,D163,X163,Z163)+1)) -> 2207 | M164: 据说，许由栖身于此，绝迹尘世，已有数百年。 | O164: 10013 | P164: =IF(O164=O163,P163+1,1) -> 2 | T164: =IF(R164="","","-"&VLOOKUP(R164,EventConditionConfig!A:C,3,FALSE)&IF(S164="","",CHAR(10)&"-"&VLOOKUP(S164,EventConditionConfig!A:C,3,FALSE))) ->  | AE164: =IF(A164="","",IF(U164=1,"",IF(A165="",3,1))) -> 1 | AF164: =IF(AE164=1,A165,IF(AE164=3,LEFT(A164,5)+1,"")) -> 1001303
A165: =O165*100+P165 -> 1001303 | B165: 2204 | C165: 访贤许由 | D165: =IF(E165="","",B165+1) -> 2205 | E165: 听一听这位尧帝口中的贤士有何说法 | K165: =IF(J165="","",VLOOKUP(J165,EventNPC!A:E,5,FALSE)) ->  | L165: =IF(M165="","",IF(P165=1,MAX(D165,B165)+1,MAX(B164,L164,D164,X164,Z164)+1)) -> 2208 | M165: 山风徐徐，水声如琴，你踏过青石小径，看见一位白衣道人正倚石观水。 | O165: 10013 | P165: =IF(O165=O164,P164+1,1) -> 3 | T165: =IF(R165="","","-"&VLOOKUP(R165,EventConditionConfig!A:C,3,FALSE)&IF(S165="","",CHAR(10)&"-"&VLOOKUP(S165,EventConditionConfig!A:C,3,FALSE))) ->  | U165: 1 | V165: =A166 -> 1001304 | W165: 2209 | X165: 2209 | Y165: 前辈可是许由？ | AE165: =IF(A165="","",IF(U165=1,"",IF(A166="",3,1))) ->  | AF165: =IF(AE165=1,A166,IF(AE165=3,LEFT(A165,5)+1,"")) -> 
A166: =O166*100+P166 -> 1001304 | B166: 2204 | C166: 访贤许由 | D166: =IF(E166="","",B166+1) -> 2205 | E166: 听一听这位尧帝口中的贤士有何说法 | J166: 106 | K166: =IF(J166="","",VLOOKUP(J166,EventNPC!A:E,5,FALSE)) -> 许由 | L166: =IF(M166="","",IF(P166=1,MAX(D166,B166)+1,MAX(B165,L165,D165,X165,Z165)+1)) -> 2210 | M166: 正是，小友何事？ | O166: 10013 | P166: =IF(O166=O165,P165+1,1) -> 4 | T166: =IF(R166="","","-"&VLOOKUP(R166,EventConditionConfig!A:C,3,FALSE)&IF(S166="","",CHAR(10)&"-"&VLOOKUP(S166,EventConditionConfig!A:C,3,FALSE))) ->  | AE166: =IF(A166="","",IF(U166=1,"",IF(A167="",3,1))) -> 1 | AF166: =IF(AE166=1,A167,IF(AE166=3,LEFT(A166,5)+1,"")) -> 1001305
A167: =O167*100+P167 -> 1001305 | B167: 2204 | C167: 访贤许由 | D167: =IF(E167="","",B167+1) -> 2205 | E167: 听一听这位尧帝口中的贤士有何说法 | J167: 100 | K167: =IF(J167="","",VLOOKUP(J167,EventNPC!A:E,5,FALSE)) -> 玩家 | L167: =IF(M167="","",IF(P167=1,MAX(D167,B167)+1,MAX(B166,L166,D166,X166,Z166)+1)) -> 2211 | M167: 帝尧欲专心修行，求道问玄，又怕耽误世事，特托我前来相请，欲让天下于你。 | O167: 10013 | P167: =IF(O167=O166,P166+1,1) -> 5 | T167: =IF(R167="","","-"&VLOOKUP(R167,EventConditionConfig!A:C,3,FALSE)&IF(S167="","",CHAR(10)&"-"&VLOOKUP(S167,EventConditionConfig!A:C,3,FALSE))) ->  | AE167: =IF(A167="","",IF(U167=1,"",IF(A168="",3,1))) -> 1 | AF167: =IF(AE167=1,A168,IF(AE167=3,LEFT(A167,5)+1,"")) -> 1001306
A168: =O168*100+P168 -> 1001306 | B168: 2204 | C168: 访贤许由 | D168: =IF(E168="","",B168+1) -> 2205 | E168: 听一听这位尧帝口中的贤士有何说法 | J168: 106 | K168: =IF(J168="","",VLOOKUP(J168,EventNPC!A:E,5,FALSE)) -> 许由 | L168: =IF(M168="","",IF(P168=1,MAX(D168,B168)+1,MAX(B167,L167,D167,X167,Z167)+1)) -> 2212 | M168: （静默片刻）昔日帝尧就提过此事，我已辞之。 | O168: 10013 | P168: =IF(O168=O167,P167+1,1) -> 6 | T168: =IF(R168="","","-"&VLOOKUP(R168,EventConditionConfig!A:C,3,FALSE)&IF(S168="","",CHAR(10)&"-"&VLOOKUP(S168,EventConditionConfig!A:C,3,FALSE))) ->  | AE168: =IF(A168="","",IF(U168=1,"",IF(A169="",3,1))) -> 1 | AF168: =IF(AE168=1,A169,IF(AE168=3,LEFT(A168,5)+1,"")) -> 1001307
A169: =O169*100+P169 -> 1001307 | B169: 2204 | C169: 访贤许由 | D169: =IF(E169="","",B169+1) -> 2205 | E169: 听一听这位尧帝口中的贤士有何说法 | J169: 106 | K169: =IF(J169="","",VLOOKUP(J169,EventNPC!A:E,5,FALSE)) -> 许由 | L169: =IF(M169="","",IF(P169=1,MAX(D169,B169)+1,MAX(B168,L168,D168,X168,Z168)+1)) -> 2213 | M169: 今日又来，想是道心不定，执念未除。 | O169: 10013 | P169: =IF(O169=O168,P168+1,1) -> 7 | T169: =IF(R169="","","-"&VLOOKUP(R169,EventConditionConfig!A:C,3,FALSE)&IF(S169="","",CHAR(10)&"-"&VLOOKUP(S169,EventConditionConfig!A:C,3,FALSE))) ->  | U169: 1 | V169: =A170 -> 1001308 | W169: 2214 | X169: 2214 | Y169: 请前辈出山。 | AE169: =IF(A169="","",IF(U169=1,"",IF(A170="",3,1))) ->  | AF169: =IF(AE169=1,A170,IF(AE169=3,LEFT(A169,5)+1,"")) -> 
A170: 1001308 | B170: 2204 | C170: 访贤许由 | D170: 2205 | E170: 听一听这位尧帝口中的贤士有何说法 | J170: 106 | K170: =IF(J170="","",VLOOKUP(J170,EventNPC!A:E,5,FALSE)) -> 许由 | L170: 2215 | M170: 哼，让我去？ | O170: 10013 | P170: 8 | T170: =IF(R170="","","-"&VLOOKUP(R170,EventConditionConfig!A:C,3,FALSE)&IF(S170="","",CHAR(10)&"-"&VLOOKUP(S170,EventConditionConfig!A:C,3,FALSE))) ->  | AE170: 1 | AF170: 1001309
A171: =O171*100+P171 -> 1001309 | B171: 2204 | C171: 访贤许由 | D171: =IF(E171="","",B171+1) -> 2205 | E171: 听一听这位尧帝口中的贤士有何说法 | J171: 106 | K171: =IF(J171="","",VLOOKUP(J171,EventNPC!A:E,5,FALSE)) -> 许由 | L171: =IF(M171="","",IF(P171=1,MAX(D171,B171)+1,MAX(B170,L170,D170,X170,Z170)+1)) -> 2216 | M171: 那我问你，日月升天，照耀四方。若这时有人手举火把照路，岂不徒劳？ | O171: 10013 | P171: =IF(O171=O170,P170+1,1) -> 9 | T171: =IF(R171="","","-"&VLOOKUP(R171,EventConditionConfig!A:C,3,FALSE)&IF(S171="","",CHAR(10)&"-"&VLOOKUP(S171,EventConditionConfig!A:C,3,FALSE))) ->  | AE171: =IF(A171="","",IF(U171=1,"",IF(A172="",3,1))) -> 1 | AF171: =IF(AE171=1,A172,IF(AE171=3,LEFT(A171,5)+1,"")) -> 1001310
A172: =O172*100+P172 -> 1001310 | B172: 2204 | C172: 访贤许由 | D172: =IF(E172="","",B172+1) -> 2205 | E172: 听一听这位尧帝口中的贤士有何说法 | J172: 106 | K172: =IF(J172="","",VLOOKUP(J172,EventNPC!A:E,5,FALSE)) -> 许由 | L172: =IF(M172="","",IF(P172=1,MAX(D172,B172)+1,MAX(B171,L171,D171,X171,Z171)+1)) -> 2217 | M172: 那我再问你，斜风细雨，滋养万物。若这时有人用水桶来灌溉，岂不可笑？ | O172: 10013 | P172: =IF(O172=O171,P171+1,1) -> 10 | T172: =IF(R172="","","-"&VLOOKUP(R172,EventConditionConfig!A:C,3,FALSE)&IF(S172="","",CHAR(10)&"-"&VLOOKUP(S172,EventConditionConfig!A:C,3,FALSE))) ->  | AE172: =IF(A172="","",IF(U172=1,"",IF(A173="",3,1))) -> 1 | AF172: =IF(AE172=1,A173,IF(AE172=3,LEFT(A172,5)+1,"")) -> 1001311
A173: =O173*100+P173 -> 1001311 | B173: 2204 | C173: 访贤许由 | D173: =IF(E173="","",B173+1) -> 2205 | E173: 听一听这位尧帝口中的贤士有何说法 | J173: 106 | K173: =IF(J173="","",VLOOKUP(J173,EventNPC!A:E,5,FALSE)) -> 许由 | L173: =IF(M173="","",IF(P173=1,MAX(D173,B173)+1,MAX(B172,L172,D172,X172,Z172)+1)) -> 2218 | M173: 天下在尧的带领下，已经治理得很好了，又何必要我，我是要去混个功成名就吗？ | O173: 10013 | P173: =IF(O173=O172,P172+1,1) -> 11 | T173: =IF(R173="","","-"&VLOOKUP(R173,EventConditionConfig!A:C,3,FALSE)&IF(S173="","",CHAR(10)&"-"&VLOOKUP(S173,EventConditionConfig!A:C,3,FALSE))) ->  | AE173: =IF(A173="","",IF(U173=1,"",IF(A174="",3,1))) -> 1 | AF173: =IF(AE173=1,A174,IF(AE173=3,LEFT(A173,5)+1,"")) -> 1001312
A174: =O174*100+P174 -> 1001312 | B174: 2204 | C174: 访贤许由 | D174: =IF(E174="","",B174+1) -> 2205 | E174: 听一听这位尧帝口中的贤士有何说法 | J174: 106 | K174: =IF(J174="","",VLOOKUP(J174,EventNPC!A:E,5,FALSE)) -> 许由 | L174: =IF(M174="","",IF(P174=1,MAX(D174,B174)+1,MAX(B173,L173,D173,X173,Z173)+1)) -> 2219 | M174: 回答我？ | O174: 10013 | P174: =IF(O174=O173,P173+1,1) -> 12 | T174: =IF(R174="","","-"&VLOOKUP(R174,EventConditionConfig!A:C,3,FALSE)&IF(S174="","",CHAR(10)&"-"&VLOOKUP(S174,EventConditionConfig!A:C,3,FALSE))) ->  | U174: 1 | V174: =A175 -> 1001313 | W174: 2220 | X174: 2220 | Y174: 就算只得功成名就也不错。 | AE174: =IF(A174="","",IF(U174=1,"",IF(A175="",3,1))) ->  | AF174: =IF(AE174=1,A175,IF(AE174=3,LEFT(A174,5)+1,"")) -> 
A175: 1001313 | B175: 2204 | C175: 访贤许由 | D175: 2205 | E175: 听一听这位尧帝口中的贤士有何说法 | J175: 106 | K175: =IF(J175="","",VLOOKUP(J175,EventNPC!A:E,5,FALSE)) -> 许由 | L175: 2221 | M175: 小友，名就像宾客一样，难道我们的一生是为了宾客吗？ | O175: 10013 | P175: 13 | T175: =IF(R175="","","-"&VLOOKUP(R175,EventConditionConfig!A:C,3,FALSE)&IF(S175="","",CHAR(10)&"-"&VLOOKUP(S175,EventConditionConfig!A:C,3,FALSE))) ->  | U175: 1 | V175: =A176 -> 1001314 | W175: 2222 | X175: 2222 | Y175: （愣住）......
A176: =O176*100+P176 -> 1001314 | B176: 2204 | C176: 访贤许由 | D176: =IF(E176="","",B176+1) -> 2205 | E176: 听一听这位尧帝口中的贤士有何说法 | J176: 106 | K176: =IF(J176="","",VLOOKUP(J176,EventNPC!A:E,5,FALSE)) -> 许由 | L176: =IF(M176="","",IF(P176=1,MAX(D176,B176)+1,MAX(B175,L175,D175,X175,Z175)+1)) -> 2223 | M176: 他若真想修道，便该知“道不碍政，心自碍道”。 | O176: 10013 | P176: =IF(O176=O175,P175+1,1) -> 14 | T176: =IF(R176="","","-"&VLOOKUP(R176,EventConditionConfig!A:C,3,FALSE)&IF(S176="","",CHAR(10)&"-"&VLOOKUP(S176,EventConditionConfig!A:C,3,FALSE))) ->  | AE176: =IF(A176="","",IF(U176=1,"",IF(A177="",3,1))) -> 1 | AF176: =IF(AE176=1,A177,IF(AE176=3,LEFT(A176,5)+1,"")) -> 1001315
A177: 1001315 | B177: 2204 | C177: 访贤许由 | D177: 2205 | E177: 听一听这位尧帝口中的贤士有何说法 | J177: 106 | K177: =IF(J177="","",VLOOKUP(J177,EventNPC!A:E,5,FALSE)) -> 许由 | L177: 2224 | M177: 若心不净，纵避千山万水，又有何用。 | O177: 10013 | P177: 15 | T177: =IF(R177="","","-"&VLOOKUP(R177,EventConditionConfig!A:C,3,FALSE)&IF(S177="","",CHAR(10)&"-"&VLOOKUP(S177,EventConditionConfig!A:C,3,FALSE))) ->  | U177: 1 | V177: =A178 -> 1001316 | W177: =_xlfn.TEXTJOIN(";",1,X177,Z177) -> 2225 | X177: =IF(Y177="","",L177+1) -> 2225 | Y177: （愣住）......
A178: 1001316 | B178: 2204 | C178: 访贤许由 | D178: 2205 | E178: 听一听这位尧帝口中的贤士有何说法 | K178: =IF(J178="","",VLOOKUP(J178,EventNPC!A:E,5,FALSE)) ->  | O178: 10013 | P178: 16 | T178: =IF(R178="","","-"&VLOOKUP(R178,EventConditionConfig!A:C,3,FALSE)&IF(S178="","",CHAR(10)&"-"&VLOOKUP(S178,EventConditionConfig!A:C,3,FALSE))) ->  | W178: =_xlfn.TEXTJOIN(";",1,X178,Z178) ->  | X178: =IF(Y178="","",L178+1) ->  | AE178: 3 | AF178: 10014
T179: =IF(R179="","","-"&VLOOKUP(R179,EventConditionConfig!A:C,3,FALSE)&IF(S179="","",CHAR(10)&"-"&VLOOKUP(S179,EventConditionConfig!A:C,3,FALSE))) -> 
A180: =O180*100+P180 -> 1001401 | B180: =IF(B179="",MAX(Z178,X178,L178,B178,D178,Z177,X177,L177)+1,B179) -> 2226 | C180: 割草喝茶 | D180: =IF(E180="","",B180+1) ->  | J180: 106 | K180: =IF(J180="","",VLOOKUP(J180,EventNPC!A:E,5,FALSE)) -> 许由 | L180: =IF(M180="","",IF(P180=1,MAX(D180,B180)+1,MAX(B179,L179,D179,X179,Z179)+1)) -> 2227 | M180: （转身望向屋后的山坡）你来得也巧，我正想在开辟一块新药田。 | O180: =IF(O179="",O178+1,O179) -> 10014 | P180: =IF(O180=O179,P179+1,1) -> 1 | T180: =IF(R180="","","-"&VLOOKUP(R180,EventConditionConfig!A:C,3,FALSE)&IF(S180="","",CHAR(10)&"-"&VLOOKUP(S180,EventConditionConfig!A:C,3,FALSE))) ->  | W180: =_xlfn.TEXTJOIN(";",1,X180,Z180) ->  | X180: =IF(Y180="","",L180+1) ->  | Z180: =IF(AA180="","",X180+1) ->  | AE180: =IF(A180="","",IF(U180=1,"",IF(A181="",3,1))) -> 1 | AF180: =IF(AE180=1,A181,IF(AE180=3,LEFT(A180,5)+1,"")) -> 1001402
A181: =O181*100+P181 -> 1001402 | B181: 2226 | C181: 割草喝茶 | D181: =IF(E181="","",B181+1) ->  | J181: 106 | K181: =IF(J181="","",VLOOKUP(J181,EventNPC!A:E,5,FALSE)) -> 许由 | L181: =IF(M181="","",IF(P181=1,MAX(D181,B181)+1,MAX(B180,L180,D180,X180,Z180)+1)) -> 2228 | M181: 后山有一块不错的地，离家有一点远平时我也懒得去打理，正好你来了帮我开辟出来吧。 | O181: 10014 | P181: =IF(O181=O180,P180+1,1) -> 2 | T181: =IF(R181="","","-"&VLOOKUP(R181,EventConditionConfig!A:C,3,FALSE)&IF(S181="","",CHAR(10)&"-"&VLOOKUP(S181,EventConditionConfig!A:C,3,FALSE))) ->  | U181: 1 | V181: =A182 -> 1001403 | W181: 2229 | X181: 2229 | Y181: ……前辈是让我干农活吗 | AE181: =IF(A181="","",IF(U181=1,"",IF(A182="",3,1))) ->  | AF181: =IF(AE181=1,A182,IF(AE181=3,LEFT(A181,5)+1,"")) -> 
A182: 1001403 | B182: 2226 | C182: 割草喝茶 | J182: 106 | K182: =IF(J182="","",VLOOKUP(J182,EventNPC!A:E,5,FALSE)) -> 许由 | L182: 2230 | M182: （笑）哈哈，正是，帮我清理一下灵田，回来请你喝茶。 | O182: 10014 | P182: 3 | Q182: =_xlfn.TEXTJOIN(";",1,R182:S182) ->  | T182: =IF(R182="","","-"&VLOOKUP(R182,EventConditionConfig!A:C,3,FALSE)&IF(S182="","",CHAR(10)&"-"&VLOOKUP(S182,EventConditionConfig!A:C,3,FALSE))) ->  | AE182: 1 | AF182: 1001404
A183: =O183*100+P183 -> 1001404 | B183: 2226 | C183: 割草喝茶 | D183: =IF(E183="","",B183+1) ->  | J183: 106 | K183: =IF(J183="","",VLOOKUP(J183,EventNPC!A:E,5,FALSE)) -> 许由 | L183: =IF(M183="","",IF(P183=1,MAX(D183,B183)+1,MAX(B182,L182,D182,X182,Z182)+1)) -> 2231 | M183: 对了，在哪些杂草中不也会生长着一些药效不错的药草，这些药草在杂草中没有更好的成长起来，如果发现了药草帮我收集一些药草的种子回来。 | O183: 10014 | P183: =IF(O183=O182,P182+1,1) -> 4 | Q183: =_xlfn.TEXTJOIN(";",1,R183:S183) ->  | T183: =IF(R183="","","-"&VLOOKUP(R183,EventConditionConfig!A:C,3,FALSE)&IF(S183="","",CHAR(10)&"-"&VLOOKUP(S183,EventConditionConfig!A:C,3,FALSE))) ->  | AE183: =IF(A183="","",IF(U183=1,"",IF(A184="",3,1))) -> 1 | AF183: =IF(AE183=1,A184,IF(AE183=3,LEFT(A183,5)+1,"")) -> 1001405
A184: =O184*100+P184 -> 1001405 | B184: 2226 | C184: 割草喝茶 | D184: =IF(E184="","",B184+1) ->  | J184: 106 | K184: =IF(J184="","",VLOOKUP(J184,EventNPC!A:E,5,FALSE)) -> 许由 | L184: =IF(M184="","",IF(P184=1,MAX(D184,B184)+1,MAX(B183,L183,D183,X183,Z183)+1)) -> 2232 | M184: 在开辟的过程中也请小心一点，后山也经常有妖怪出没。 | O184: 10014 | P184: =IF(O184=O183,P183+1,1) -> 5 | Q184: =_xlfn.TEXTJOIN(";",1,R184:S184) -> 10;11 | R184: 10 | S184: 11 | T184: =IF(R184="","","-"&VLOOKUP(R184,EventConditionConfig!A:C,3,FALSE)&IF(S184="","",CHAR(10)&"-"&VLOOKUP(S184,EventConditionConfig!A:C,3,FALSE))) -> -击败后山小妖 -收集灵草种子 | AE184: =IF(A184="","",IF(U184=1,"",IF(A185="",3,1))) -> 1 | AF184: =IF(AE184=1,A185,IF(AE184=3,LEFT(A184,5)+1,"")) -> 1001406
A185: 1001406 | B185: 2226 | C185: 割草喝茶 | K185: =IF(J185="","",VLOOKUP(J185,EventNPC!A:E,5,FALSE)) ->  | L185: 2233 | M185: （你回到屋前，满身草屑与泥土，许由在烧水，煮茶） | O185: 10014 | P185: 6 | T185: =IF(R185="","","-"&VLOOKUP(R185,EventConditionConfig!A:C,3,FALSE)&IF(S185="","",CHAR(10)&"-"&VLOOKUP(S185,EventConditionConfig!A:C,3,FALSE))) ->  | AE185: 1 | AF185: 1001407
A186: =O186*100+P186 -> 1001407 | B186: 2226 | C186: 割草喝茶 | D186: =IF(E186="","",B186+1) ->  | J186: 106 | K186: =IF(J186="","",VLOOKUP(J186,EventNPC!A:E,5,FALSE)) -> 许由 | L186: =IF(M186="","",IF(P186=1,MAX(D186,B186)+1,MAX(B185,L185,D185,X185,Z185)+1)) -> 2234 | M186: 动得挺快。坐，喝口茶。 | O186: 10014 | P186: =IF(O186=O185,P185+1,1) -> 7 | Q186: =_xlfn.TEXTJOIN(";",1,R186:S186) ->  | T186: =IF(R186="","","-"&VLOOKUP(R186,EventConditionConfig!A:C,3,FALSE)&IF(S186="","",CHAR(10)&"-"&VLOOKUP(S186,EventConditionConfig!A:C,3,FALSE))) ->  | U186: =IF(Y186="","",1) -> 1 | V186: =IF(U186=1,A187,"") -> 1001408 | W186: 2235 | X186: 2235 | Y186: 多谢前辈。 | AE186: =IF(A186="","",IF(U186=1,"",IF(A187="",3,1))) ->  | AF186: =IF(AE186=1,A187,IF(AE186=3,LEFT(A186,5)+1,"")) -> 
A187: =O187*100+P187 -> 1001408 | B187: 2226 | C187: 割草喝茶 | D187: =IF(E187="","",B187+1) ->  | K187: =IF(J187="","",VLOOKUP(J187,EventNPC!A:E,5,FALSE)) ->  | L187: =IF(M187="","",IF(P187=1,MAX(D187,B187)+1,MAX(B186,L186,D186,X186,Z186)+1)) -> 2236 | M187: （你获得了永久属性提升）（此处需要进一步处理） | O187: 10014 | P187: =IF(O187=O186,P186+1,1) -> 8 | Q187: =_xlfn.TEXTJOIN(";",1,R187:S187) ->  | T187: =IF(R187="","","-"&VLOOKUP(R187,EventConditionConfig!A:C,3,FALSE)&IF(S187="","",CHAR(10)&"-"&VLOOKUP(S187,EventConditionConfig!A:C,3,FALSE))) ->  | U187: =IF(Y187="","",1) ->  | V187: =IF(U187=1,A188,"") ->  | AE187: =IF(A187="","",IF(U187=1,"",IF(A188="",3,1))) -> 3 | AF187: =IF(AE187=1,A188,IF(AE187=3,LEFT(A187,5)+1,"")) -> 10015
A189: =O189*100+P189 -> 1001501 | B189: =IF(B188="",MAX(Z187,X187,L187,B187,D187,Z186,X186,L186)+1,B188) -> 2237 | C189: 再来一杯 | D189: =IF(E189="","",B189+1) ->  | J189: 106 | K189: =IF(J189="","",VLOOKUP(J189,EventNPC!A:E,5,FALSE)) -> 许由 | L189: =IF(M189="","",IF(P189=1,MAX(D189,B189)+1,MAX(B188,L188,D188,X188,Z188)+1)) -> 2238 | M189: 今天的风有点不对，开来昨日你在后山的动静不小呀，山那头怕是要来些不速之客。 | O189: =IF(O188="",O187+1,O188) -> 10015 | P189: =IF(O189=O188,P188+1,1) -> 1 | Q189: =_xlfn.TEXTJOIN(";",1,R189:S189) ->  | T189: =IF(R189="","","-"&VLOOKUP(R189,EventConditionConfig!A:C,3,FALSE)&IF(S189="","",CHAR(10)&"-"&VLOOKUP(S189,EventConditionConfig!A:C,3,FALSE))) ->  | U189: =IF(Y189="","",1) ->  | V189: =IF(U189=1,A190,"") ->  | W189: =_xlfn.TEXTJOIN(";",1,X189,Z189) ->  | X189: =IF(Y189="","",L189+1) ->  | Z189: =IF(AA189="","",X189+1) ->  | AE189: =IF(A189="","",IF(U189=1,"",IF(A190="",3,1))) -> 1 | AF189: =IF(AE189=1,A190,IF(AE189=3,LEFT(A189,5)+1,"")) -> 1001502
A190: =O190*100+P190 -> 1001502 | B190: 2237 | C190: 再来一杯 | D190: =IF(E190="","",B190+1) ->  | J190: 106 | K190: =IF(J190="","",VLOOKUP(J190,EventNPC!A:E,5,FALSE)) -> 许由 | L190: =IF(M190="","",IF(P190=1,MAX(D190,B190)+1,MAX(B189,L189,D189,X189,Z189)+1)) -> 2239 | M190: 你才帮我弄好灵草种子和灵田，别让妖兽给毁了。 | O190: 10015 | P190: =IF(O190=O189,P189+1,1) -> 2 | Q190: =_xlfn.TEXTJOIN(";",1,R190:S190) ->  | T190: =IF(R190="","","-"&VLOOKUP(R190,EventConditionConfig!A:C,3,FALSE)&IF(S190="","",CHAR(10)&"-"&VLOOKUP(S190,EventConditionConfig!A:C,3,FALSE))) ->  | AE190: =IF(A190="","",IF(U190=1,"",IF(A191="",3,1))) -> 1 | AF190: =IF(AE190=1,A191,IF(AE190=3,LEFT(A190,5)+1,"")) -> 1001503
A191: =O191*100+P191 -> 1001503 | B191: 2237 | C191: 再来一杯 | D191: =IF(E191="","",B191+1) ->  | J191: 106 | K191: =IF(J191="","",VLOOKUP(J191,EventNPC!A:E,5,FALSE)) -> 许由 | L191: =IF(M191="","",IF(P191=1,MAX(D191,B191)+1,MAX(B190,L190,D190,X190,Z190)+1)) -> 2240 | M191: 你去走一趟。 | O191: 10015 | P191: =IF(O191=O190,P190+1,1) -> 3 | Q191: =_xlfn.TEXTJOIN(";",1,R191:S191) ->  | T191: =IF(R191="","","-"&VLOOKUP(R191,EventConditionConfig!A:C,3,FALSE)&IF(S191="","",CHAR(10)&"-"&VLOOKUP(S191,EventConditionConfig!A:C,3,FALSE))) ->  | U191: 1 | V191: 1001504 | W191: 2241 | X191: 2241 | Y191: 好的...... | AE191: =IF(A191="","",IF(U191=1,"",IF(A192="",3,1))) ->  | AF191: =IF(AE191=1,A192,IF(AE191=3,LEFT(A191,5)+1,"")) -> 
A192: 1001504 | B192: 2237 | C192: 再来一杯 | K192: =IF(J192="","",VLOOKUP(J192,EventNPC!A:E,5,FALSE)) ->  | O192: 10015 | P192: 4 | Q192: 12 | R192: 12 | T192: =IF(R192="","","-"&VLOOKUP(R192,EventConditionConfig!A:C,3,FALSE)&IF(S192="","",CHAR(10)&"-"&VLOOKUP(S192,EventConditionConfig!A:C,3,FALSE))) -> -击败夜袭的妖兽 | AE192: 1 | AF192: 1001505
A193: 1001505 | B193: 2237 | C193: 再来一杯 | K193: =IF(J193="","",VLOOKUP(J193,EventNPC!A:E,5,FALSE)) ->  | L193: 2238 | M193: （回到屋前，看到许由又在烧水，煮茶，和上次一样） | O193: 10015 | P193: 5 | T193: =IF(R193="","","-"&VLOOKUP(R193,EventConditionConfig!A:C,3,FALSE)&IF(S193="","",CHAR(10)&"-"&VLOOKUP(S193,EventConditionConfig!A:C,3,FALSE))) ->  | AE193: 1 | AF193: 1001506
A194: =O194*100+P194 -> 1001506 | B194: 2237 | C194: 再来一杯 | D194: =IF(E194="","",B194+1) ->  | J194: 106 | K194: =IF(J194="","",VLOOKUP(J194,EventNPC!A:E,5,FALSE)) -> 许由 | L194: =IF(M194="","",IF(P194=1,MAX(D194,B194)+1,MAX(B193,L193,D193,X193,Z193)+1)) -> 2239 | M194: 来，喝茶。 | O194: 10015 | P194: =IF(O194=O193,P193+1,1) -> 6 | Q194: =_xlfn.TEXTJOIN(";",1,R194:S194) ->  | T194: =IF(R194="","","-"&VLOOKUP(R194,EventConditionConfig!A:C,3,FALSE)&IF(S194="","",CHAR(10)&"-"&VLOOKUP(S194,EventConditionConfig!A:C,3,FALSE))) ->  | AE194: =IF(A194="","",IF(U194=1,"",IF(A195="",3,1))) -> 1 | AF194: =IF(AE194=1,A195,IF(AE194=3,LEFT(A194,5)+1,"")) -> 1001507
A195: =O195*100+P195 -> 1001507 | B195: 2237 | C195: 再来一杯 | D195: =IF(E195="","",B195+1) ->  | J195: 100 | K195: =IF(J195="","",VLOOKUP(J195,EventNPC!A:E,5,FALSE)) -> 玩家 | L195: =IF(M195="","",IF(P195=1,MAX(D195,B195)+1,MAX(B194,L194,D194,X194,Z194)+1)) -> 2240 | M195: （心中默念...这个精英妖兽，可费我一些功夫，怎么又是茶？） | O195: 10015 | P195: =IF(O195=O194,P194+1,1) -> 7 | Q195: =_xlfn.TEXTJOIN(";",1,R195:S195) ->  | T195: =IF(R195="","","-"&VLOOKUP(R195,EventConditionConfig!A:C,3,FALSE)&IF(S195="","",CHAR(10)&"-"&VLOOKUP(S195,EventConditionConfig!A:C,3,FALSE))) ->  | U195: 1 | V195: 1001508 | W195: 2241 | X195: 2241 | Y195: （你没说话，默默喝下） | AE195: =IF(A195="","",IF(U195=1,"",IF(A196="",3,1))) ->  | AF195: =IF(AE195=1,A196,IF(AE195=3,LEFT(A195,5)+1,"")) -> 
A196: 1001508 | B196: 2237 | C196: 再来一杯 | K196: =IF(J196="","",VLOOKUP(J196,EventNPC!A:E,5,FALSE)) ->  | L196: 2242 | M196: （你获得了永久属性提升）（此处需要进一步处理） | O196: 10015 | P196: 8 | T196: =IF(R196="","","-"&VLOOKUP(R196,EventConditionConfig!A:C,3,FALSE)&IF(S196="","",CHAR(10)&"-"&VLOOKUP(S196,EventConditionConfig!A:C,3,FALSE))) ->  | AE196: 3 | AF196: 10016
A198: =O198*100+P198 -> 1001601 | B198: =IF(B197="",MAX(Z196,X196,L196,B196,D196,Z195,X195,L195)+1,B197) -> 2243 | C198: 战胜妖王 | D198: =IF(E198="","",B198+1) ->  | K198: =IF(J198="","",VLOOKUP(J198,EventNPC!A:E,5,FALSE)) ->  | L198: =IF(M198="","",IF(P198=1,MAX(D198,B198)+1,MAX(B197,L197,D197,X197,Z197)+1)) -> 2244 | M198: （次日清晨，山顶云气升腾，许由站在灵田边，看着远山） | O198: =IF(O197="",O196+1,O197) -> 10016 | P198: =IF(O198=O197,P197+1,1) -> 1 | Q198: =_xlfn.TEXTJOIN(";",1,R198:S198) ->  | T198: =IF(R198="","","-"&VLOOKUP(R198,EventConditionConfig!A:C,3,FALSE)&IF(S198="","",CHAR(10)&"-"&VLOOKUP(S198,EventConditionConfig!A:C,3,FALSE))) ->  | U198: =IF(Y198="","",1) ->  | V198: =IF(U198=1,A199,"") ->  | W198: =_xlfn.TEXTJOIN(";",1,X198,Z198) ->  | X198: =IF(Y198="","",L198+1) ->  | Z198: =IF(AA198="","",X198+1) ->  | AE198: =IF(A198="","",IF(U198=1,"",IF(A199="",3,1))) -> 1 | AF198: =IF(AE198=1,A199,IF(AE198=3,LEFT(A198,5)+1,"")) -> 1001602
A199: =O199*100+P199 -> 1001602 | B199: 2243 | C199: 战胜妖王 | D199: =IF(E199="","",B199+1) ->  | K199: =IF(J199="","",VLOOKUP(J199,EventNPC!A:E,5,FALSE)) ->  | L199: =IF(M199="","",IF(P199=1,MAX(D199,B199)+1,MAX(B198,L198,D198,X198,Z198)+1)) -> 2245 | M199: 先前的妖兽，被你压了下去。可峰顶还有一头老家伙，脾气大。 | O199: 10016 | P199: =IF(O199=O198,P198+1,1) -> 2 | Q199: =_xlfn.TEXTJOIN(";",1,R199:S199) ->  | T199: =IF(R199="","","-"&VLOOKUP(R199,EventConditionConfig!A:C,3,FALSE)&IF(S199="","",CHAR(10)&"-"&VLOOKUP(S199,EventConditionConfig!A:C,3,FALSE))) ->  | U199: 1 | V199: 1001603 | W199: 2246 | X199: 2246 | Y199: 前辈可是希望我去处理？ | AE199: =IF(A199="","",IF(U199=1,"",IF(A200="",3,1))) ->  | AF199: =IF(AE199=1,A200,IF(AE199=3,LEFT(A199,5)+1,"")) -> 
A200: 1001603 | B200: 2243 | C200: 战胜妖王 | J200: 106 | K200: =IF(J200="","",VLOOKUP(J200,EventNPC!A:E,5,FALSE)) -> 许由 | L200: 2247 | M200: （淡笑）去吧，你可以应付的。 | O200: 10016 | P200: 3 | T200: =IF(R200="","","-"&VLOOKUP(R200,EventConditionConfig!A:C,3,FALSE)&IF(S200="","",CHAR(10)&"-"&VLOOKUP(S200,EventConditionConfig!A:C,3,FALSE))) ->  | AE200: 1 | AF200: 1001604
A201: 1001604 | B201: 2243 | C201: 战胜妖王 | D201: =IF(E201="","",B201+1) ->  | K201: =IF(J201="","",VLOOKUP(J201,EventNPC!A:E,5,FALSE)) ->  | L201: =IF(M201="","",IF(P201=1,MAX(D201,B201)+1,MAX(B200,L200,D200,X200,Z200)+1)) ->  | O201: 10016 | P201: =IF(O201=O200,P200+1,1) -> 4 | Q201: =_xlfn.TEXTJOIN(";",1,R201:S201) -> 13 | R201: 13 | T201: =IF(R201="","","-"&VLOOKUP(R201,EventConditionConfig!A:C,3,FALSE)&IF(S201="","",CHAR(10)&"-"&VLOOKUP(S201,EventConditionConfig!A:C,3,FALSE))) -> -击败峰顶的妖王 | AE201: =IF(A201="","",IF(U201=1,"",IF(A202="",3,1))) -> 1 | AF201: =IF(AE201=1,A202,IF(AE201=3,LEFT(A201,5)+1,"")) -> 1001605
A202: =O202*100+P202 -> 1001605 | B202: 2243 | C202: 战胜妖王 | K202: =IF(J202="","",VLOOKUP(J202,EventNPC!A:E,5,FALSE)) ->  | L202: 2244 | M202: （你回到屋前，略显疲惫，许由依然在烧水，煮茶） | O202: 10016 | P202: 5 | T202: =IF(R202="","","-"&VLOOKUP(R202,EventConditionConfig!A:C,3,FALSE)&IF(S202="","",CHAR(10)&"-"&VLOOKUP(S202,EventConditionConfig!A:C,3,FALSE))) ->  | AE202: 1 | AF202: 1001606
A203: =O203*100+P203 -> 1001606 | B203: 2243 | C203: 战胜妖王 | D203: =IF(E203="","",B203+1) ->  | J203: 106 | K203: =IF(J203="","",VLOOKUP(J203,EventNPC!A:E,5,FALSE)) -> 许由 | L203: =IF(M203="","",IF(P203=1,MAX(D203,B203)+1,MAX(B202,L202,D202,X202,Z202)+1)) -> 2245 | M203: （不动声色，递茶）喝吧。 | O203: 10016 | P203: =IF(O203=O202,P202+1,1) -> 6 | Q203: =_xlfn.TEXTJOIN(";",1,R203:S203) ->  | T203: =IF(R203="","","-"&VLOOKUP(R203,EventConditionConfig!A:C,3,FALSE)&IF(S203="","",CHAR(10)&"-"&VLOOKUP(S203,EventConditionConfig!A:C,3,FALSE))) ->  | AE203: =IF(A203="","",IF(U203=1,"",IF(A204="",3,1))) -> 1 | AF203: =IF(AE203=1,A204,IF(AE203=3,LEFT(A203,5)+1,"")) -> 1001607
... 112 more rows

Sheet EventConditionConfig
A1: ID | B1: message | E1: Operation | G1: ConditionType | H1: ConditionPara | I1: finishCount
A2: int | B2: int | E2: int | G2: int | H2: int[] | I2: int
A4: ID | B4: 描述 | E4: 与0 或1 | G4: 条件判断类型 | H4: 条件判断值 | I4: 条件完成次数or数量 | J4: 提示 | K4: 跳转
A5: 1 | B5: 2078 | C5: 拥有金币 | D5: =CONCATENATE("- ",C5,"{0}/{1}") -> - 拥有金币{0}/{1} | G5: 1 | H5: 1001 | I5: 10
A6: 2 | B6: 2079 | C6: 达到境界：筑基-中期 | D6: =CONCATENATE("- ",C6,"{0}/{1}") -> - 达到境界：筑基-中期{0}/{1} | G6: 3 | H6: 11 | I6: 1
A7: 3 | B7: 2080 | C7: 击杀魔休 | D7: - 击杀魔休{0}/{1} | G7: 5 | H7: 1001 | I7: 5
A8: 4 | B8: 2081 | C8: 获得钻石 | D8: - 获得钻石{0}/{1} | G8: 6 | H8: 1002 | I8: 10
A9: 5 | B9: 2082 | C9: 使用神识 | D9: - 使用神识{0}/{1} | G9: 8 | I9: 1
A10: 6 | B10: 2094 | C10: 继续飞行一段时间 | D10: - 继续飞行一段时间{0}/{1} | G10: 9 | I10: 6
A11: 7 | B11: 2843 | C11: 击败结界兽 | D11: - 击败结界兽{0}/{1} | G11: 5 | H11: 1002 | I11: 1
A12: 8 | B12: 2844 | C12: 达到境界：筑基-后期 | D12: - 达到境界：筑基-后期{0}/{1} | G12: 3 | H12: 21 | I12: 1
A13: 9 | B13: 2845 | C13: 击杀妖兽 | D13: - 击杀妖兽{0}/{1} | G13: 5 | H13: 1003 | I13: 1
A14: 10 | B14: 2846 | C14: 击败后山小妖 | D14: - 击败后山小妖{0}/{1} | G14: 5 | H14: 1004 | I14: 3
A15: 11 | B15: 2847 | C15: 收集灵草种子 | D15: - 收集灵草种子{0}/{1} | G15: 6 | H15: 1002 | I15: 3
A16: 12 | B16: 2848 | C16: 击败夜袭的妖兽 | D16: - 击败夜袭的妖兽{0}/{1} | G16: 5 | H16: 1005 | I16: 1
A17: 13 | B17: 2849 | C17: 击败峰顶的妖王 | D17: - 击败峰顶的妖王{0}/{1} | G17: 5 | H17: 1006 | I17: 1
A18: 14 | B18: 2850 | C18: 境界达到[金丹-前期] | D18: - 境界达到[金丹-前期]{0}/{1} | G18: 3 | H18: 31 | I18: 1
A19: 15 | B19: 2851 | C19: 击败仙山的阵眼妖兽 | D19: - 击败仙山的阵眼妖兽{0}/{1} | G19: 5 | H19: 1007 | I19: 1
A20: 17 | B20: 2852 | C20: 击杀灵兽获得天肥 | D20: =CONCATENATE("- ",C20,"{0}/{1}") -> - 击杀灵兽获得天肥{0}/{1} | G20: 5 | H20: 1008 | I20: 1

Sheet 条件类型查询
A1: ID | B1: 条件判断类型 | C1: 条件判断值 | D1: 条件完成次数or数量 | E1: 额外文本 | F1: 不可用 | G1: 是否可用于事件
A2: 1 | B2: 拥有特定道具 | C2: 道具ID | D2: 数量≥ | E2: 检测背包道具 | G2: 1
A3: 2 | B3: 灵根判定 | C3: 哪个灵根 | D3: 灵根值≥ | F3: 1
A4: 3 | B4: 境界判断 | C4: 境界id | G4: 1
A5: 5 | B5: 战斗胜利 | C5: 战斗组ID | D5: 胜利次数≥
A6: 6 | B6: 获得道具 | C6: 道具的ID | D6: 数量≥ | E6: 探测出事件才开始检测
A7: 7 | B7: 触发概率 | C7: 概率值 1000=100% | G7: 1
A8: 8 | B8: 使用神识 | D8: 数量≥
A9: 9 | B9: 游戏在线多少时长（秒） | D9: 时间≥（秒） | G9: 1
A10: 10 | B10: 前置事件 | C10: 事件ID | G10: 1

Sheet EventNPC
A1: ID | B1: name | C1: ID | D1: DaoyouID
A2: int | B2: int | C2: int | D2: int
A4: ID | B4: 名字 | C4: 半身像icon | D4: 道友ID | E4: 名称
A5: 1 | E5: 玩家
A6: 2 | D6: 1 | E6: 道友1
A7: 3 | D7: 2 | E7: 道友2
A8: 4 | D8: 3 | E8: 道友3
A9: 5 | D9: 4 | E9: 道友4
A10: 6 | D10: 5 | E10: 道友5
A11: 7 | D11: 6 | E11: 道友6
A12: 8 | D12: 7 | E12: 道友7
A13: 9 | D13: 8 | E13: 道友8
A14: 10 | D14: 9 | E14: 道友9
A15: 11 | D15: 10 | E15: 道友10
A17: 100 | B17: 3000 | E17: 玩家
A18: 101 | B18: 3001 | E18: 蜩鸟
A19: 102 | B19: 3002 | E19: 小麻雀
A20: 103 | B20: 3003 | E20: 疯道人
A21: 104 | B21: 3004 | E21: 痴道人
A22: 105 | B22: 3005 | E22: 尧帝
A23: 106 | B23: 3006 | E23: 许由
A24: 107 | B24: 3007 | E24: 村名甲
A25: 108 | B25: 3008 | E25: 村名乙
A26: 109 | B26: 3009 | E26: 村名丙
A27: 110 | B27: 3010 | E27: 樗木之灵
A28: 111 | E28: 惠子
A29: 112 | B29: 3021 | E29: 风无咎

Sheet XianTuLogConfig
A1: ID | B1: EventType | C1: Title | D1: Desc | E1: BigMapID
A2: int | B2: int | C2: int | D2: int | E2: int
A4: ID | B4: 1主线 2事件 | C4: 名称 | D4: 描述 | E4: 属于哪个章节
A5: 1 | B5: 1 | C5: 2087 | D5: 2089 | E5: 1 | F5: 第一章.逍遥游 | G5: 多次渡劫失败的你，误入“无何有之乡”，在这里受到了列子的指引，踏上了寻找七道心境的修仙之路。
A6: 2 | B6: 2 | C6: 2088 | D6: 2090 | E6: 1 | F6: 无用的大葫芦 | G6: 惠子种出了巨大葫芦，他觉得毫无用处，非常生气！
A7: 3 | B7: 2 | C7: 2088 | D7: 2090 | E7: 2 | F7: 无用的大葫芦 | G7: 惠子种出了巨大葫芦，他觉得毫无用处，非常生气！
A8: 4 | B8: 2 | C8: 2088 | D8: 2090 | E8: 3 | F8: 无用的大葫芦 | G8: 惠子种出了巨大葫芦，他觉得毫无用处，非常生气！
